Workbook

Sheet readme
A2: 1-13-19
B3: Copy bv, mv, reb forces from openDynoFk__press_target.php to cell B6 as numbers using 2nd option Match Destination Formating.
B4: This graph shows bv and mv force in relation to co wogas.

Sheet misc
E5: order 1st | G5: order 2nd | K5: 27.78 | N5: 90 | O5: angle | Q5: 2.65
H6: c damp | K6: -2.57 | N6: -59.25 | O6: angle | Q6: -1.5
D7: ips | E7: co wogas | F7: bv force | G7: mv force | H7: coeff | K7: -2.57 | N7: =SUM(N5:N6) -> 30.75 | O7: deg | Q7: =SUM(Q5:Q6) -> 1.15
B8: 4CS | C8: 3253 | D8: 150 | E8: 84.15333333 | F8: 25.01 | G8: 54.39333333 | H8: 0.5610222222 | K8: =SUM(K5:K7) -> 22.64 | N8: 2.65 | O8: mm | Q8: =1.15/2 -> 0.575
B9: KYB | C9: 2151 | D9: 150 | E9: 84.04 | F9: 26.53333333 | G9: 53.7 | H9: 0.5602666667 | N9: =N8/N7 -> 0.08617886179 | O9: mm per degree
B10: Showa | C10: 3531 | D10: 150 | E10: 75.10666667 | F10: 22.2 | G10: 49.79 | H10: 0.5007111111 | K10: =90-6.67 -> 83.33
B11: Blue | C11: 3391 | D11: 150 | E11: 74.62 | F11: 26.66666667 | G11: 45.37333333 | H11: 0.4974666667 | K11: =59.25+6.67 -> 65.92 | N11: 0.575 | O11: move this much
B12: Cecil | C12: 3553 | D12: 150 | E12: 65.21 | F12: 21.21 | G12: 42.78666667 | H12: 0.4347333333 | N12: =N11/N9 -> 6.672169811 | O12: = this angle diff
N15: =2.65/30.75 -> 0.08617886179
B16: 4CS | C16: 3253 | D16: 400 | E16: 241.7783333 | F16: 58.01 | G16: 171.8933333 | H16: 0.6044458333 | N16: =30.75/2.65 -> 11.60377358 | P16: =11.6*2.65 -> 30.74
B17: KYB | C17: 2151 | D17: 400 | E17: 223.54 | F17: 56.90833333 | G17: 159.075 | H17: 0.55885 | N17: =0.086*30.75 -> 2.6445
B18: Showa | C18: 3531 | D18: 400 | E18: 200.6066667 | F18: 44.95 | G18: 148.165 | H18: 0.5015166667
B19: Blue | C19: 3391 | D19: 400 | E19: 201.745 | F19: 63.04166667 | G19: 134.4983333 | H19: 0.5043625
B20: Cecil | C20: 3553 | D20: 400 | E20: 169.46 | F20: 45.21 | G20: 126.7866667 | H20: 0.42365

Sheet compare
C1: co wogas | D1: bv | E1: mv | H1: co wogas | I1: bv | J1: mv | S1: vdb / excel / openDynoFk__copy_bv_mv_reb.xlsx | AL1: end
C2: linear 80-100 | H2: linear 80-100 | P2: how much from bv
C3: =D36 -> 0.471 | D3: =INDEX(LINEST(D$21:D$23,($B$21:$B$23)^{1}),1) -> 0.128 | E3: =INDEX(LINEST(E$21:E$23,($B$21:$B$23)^{1}),1) -> 0.336 | H3: =J36 -> 0.4785 | I3: =K36 -> 0.0935 | J3: 0.3725 | P3: how much from mv
C4: =INDEX(LINEST(C$21:C$23,($B$21:$B$23)^{1}),1,2) -> 3.76 | D4: =INDEX(LINEST(D$21:D$23,($B$21:$B$23)^{1}),1,2) -> 8.1 | E4: =INDEX(LINEST(E$21:E$23,($B$21:$B$23)^{1}),1,2) -> -5.58 | H4: =J37 -> 0.6416666667 | I4: =K37 -> 7.431666667 | J4: -7.428333333 | P4: where does is cross
B6: =B39 -> 2019 XCF 350 | G6: =H39 -> 2018 SXF 350 | L6: 1/2 | M6: 1/2 | N6: 1/2 | O6: 1/2
B7: =B40 -> 3561 | C7: co wogas | D7: bv force | E7: mv force | F7: c damp | G7: =H40 -> 3533 | H7: co wogas | I7: bv force | J7: mv force | K7: c damp | L7: co wogas | M7: bv force | N7: mv force | O7: c damp
B8: ips | C8: [bv+mv+drag] | D8: [act] | E8: [act] | F8: coeff | G8: ips | H8: [bv+mv+drag] | I8: [act] | J8: [act] | K8: coeff | L8: % diff | M8: % diff | N8: % diff | O8: % diff
B9: 1 | C9: =D42 -> 1.7 | D9: =E42 -> 0.3 | E9: -0.55 | F9: =C9/$B9 -> 1.7 | G9: 1 | H9: =J42 -> 2.51 | I9: =K42 -> 0.5 | J9: 0.06 | K9: =H9/$B9 -> 2.51 | L9: =C9/H9 -> 0.6772908367 | M9: =D9/I9 -> 0.6
B10: 2 | C10: =D43 -> 2.14 | D10: 0.72 | E10: -0.12 | F10: 1.07 | G10: 2 | H10: =J43 -> 3.3 | I10: =K43 -> 1.31 | J10: =L43 -> 0.12 | K10: =H10/$B10 -> 1.65 | L10: =C10/H10 -> 0.6484848485 | M10: 0.5496183206
B11: 3 | C11: =D44 -> 2.85 | D11: 1.29 | E11: -0.12 | F11: 0.95 | G11: 3 | H11: 4.22 | I11: 2.31 | J11: 0.06 | K11: 1.406666667 | L11: 0.6753554502 | M11: 0.5584415584
B12: 4 | C12: =D45 -> 3.53 | D12: 1.87 | E12: 0.18 | F12: 0.8825 | G12: 4 | H12: 5.3 | I12: 3.35 | J12: 0.31 | K12: 1.325 | L12: 0.6660377358 | M12: 0.5582089552
B13: 5 | C13: =D46 -> 4.4 | D13: 2.53 | E13: 0.06 | F13: 0.88 | G13: 5 | H13: 5.99 | I13: 4.09 | J13: 0.49 | K13: 1.198 | L13: 0.734557596 | M13: 0.6185819071
B14: 10 | C14: =D47 -> 7.63 | D14: 4.82 | E14: 0.86 | F14: 0.763 | G14: 10 | H14: 8.21 | I14: 5.85 | J14: 0.74 | K14: 0.821 | L14: =C14/H14 -> 0.9293544458 | M14: =D14/I14 -> 0.8239316239 | N14: =E14/J14 -> 1.162162162
B15: 20 | C15: =D48 -> 12.74 | D15: 7.7 | E15: 3.33 | F15: 0.637 | G15: 20 | H15: 12.4 | I15: 7.73 | J15: 2.71 | K15: 0.62 | L15: =C15/H15 -> 1.027419355 | M15: =D15/I15 -> 0.9961190168 | N15: =E15/J15 -> 1.228782288
B16: 30 | C16: =D49 -> 17.62 | D16: 9.82 | E16: 5.79 | F16: 0.5873333333 | G16: 30 | H16: 16.86 | I16: 9.24 | J16: 5.73 | K16: 0.562 | L16: 1.045077106 | M16: 1.062770563 | N16: 1.010471204
B17: 40 | C17: =D50 -> 22.48 | D17: 11.76 | E17: 8.81 | F17: 0.562 | G17: 40 | H17: 21.58 | I17: 10.64 | J17: 9.3 | K17: 0.5395 | L17: 1.041705283 | M17: 1.105263158 | N17: 0.947311828
B18: 50 | C18: =D51 -> 27.49 | D18: 13.57 | E18: 11.77 | F18: 0.5498 | G18: 50 | H18: 26.13 | I18: 11.82 | J18: 12.63 | K18: 0.5226 | L18: 1.052047455 | M18: 1.148054146 | N18: 0.9319081552
B19: 60 | C19: =D52 -> 32.57 | D19: 15.45 | E19: 15.15 | F19: 0.5428333333 | G19: 60 | H19: 30.42 | I19: 12.97 | J19: 15.83 | K19: 0.507 | L19: 1.070677186 | M19: 1.191210486 | N19: 0.9570435881
B20: 70 | C20: =D53 -> 36.73 | D20: 16.82 | E20: 17.74 | F20: 0.5247142857 | G20: 70 | H20: 34.83 | I20: 14.07 | J20: 19.28 | K20: 0.4975714286 | L20: 1.054550675 | M20: 1.195451315 | N20: 0.9201244813
B21: 80 | C21: =D54 -> 41.47 | D21: 18.34 | E21: 21.37 | F21: 0.518375 | G21: 80 | H21: 38.85 | I21: 14.92 | J21: 22.36 | K21: 0.485625 | L21: 1.067438867 | M21: 1.22922252 | N21: 0.9557245081
B22: 90 | C22: =D55 -> 46.09 | D22: 19.62 | E22: 24.52 | F22: 0.5121111111 | G22: 90 | H22: 43.85 | I22: 15.83 | J22: 26.12 | K22: 0.4872222222 | L22: 1.051083238 | M22: 1.239418825 | N22: 0.9387442573
B23: 100 | C23: =D56 -> 50.89 | D23: 20.9 | E23: 28.09 | F23: 0.5089 | G23: 100 | H23: 48.42 | I23: 16.79 | J23: 29.81 | K23: 0.4842 | L23: 1.051011979 | M23: 1.244788565 | N23: 0.9423012412
B24: 150 | C24: =(C$3*$B24)+C$4 -> 74.41 | D24: =(D$3*$B24)+D$4 -> 27.3 | E24: =(E$3*$B24)+E$4 -> 44.82 | F24: =C24/$B24 -> 0.4960666667 | G24: 150 | H24: =(H$3*$B24)+H$4 -> 72.41666667 | I24: =(I$3*$B24)+I$4 -> 21.45666667 | J24: =(J$3*$B24)+J$4 -> 48.44666667 | K24: 0.4827777778 | L24: =C24/H24 -> 1.027525892 | M24: 1.272331832 | N24: 0.9251410486 | O24: =F24/K24 -> 1.027525892
B25: 400 | C25: =(C$3*$B25)+C$4 -> 192.16 | D25: 59.3 | E25: 128.82 | F25: 0.4804 | G25: 400 | H25: =(H$3*$B25)+H$4 -> 192.0416667 | I25: 44.83166667 | J25: 141.5716667 | K25: 0.4801041667 | L25: 1.000616186 | M25: 1.322725752 | N25: 0.909927834 | O25: =F25/K25 -> 1.000616186
B26: IF linear 70-100 | C26: =C63 -> 74.41 | D26: 27.708 | E26: 45.16 | F26: 0.4960666667 | G26: IF linear 70-100 | H26: =I63 -> 71.238 | I26: 21.298 | J26: 47.37 | K26: 0.47492 | L26: 1.044526797 | M26: 1.300967227 | N26: 0.9533459996 | O26: =F26/K26 -> 1.044526797
C27: 192.16 | D27: 61.508 | E27: 130.66 | F27: 0.4804 | H27: 185.663 | I27: 43.973 | J27: 135.745 | K27: 0.4641575 | L27: 1.03499351 | M27: 1.398767425 | N27: 0.9625400567 | O27: =F27/K27 -> 1.03499351
B28: 100.20 | D28: =D23/D15 -> 2.714285714 | E28: =E23/E16 -> 4.851468048 | G28: 100.20 | I28: =I23/I15 -> 2.172056921 | J28: =J23/J15 -> 11 | M28: =D28/I28 -> 1.24963839 | N28: =E28/J28 -> 0.4410425499
B29: bv range | C29: [1.8 - 2.7 - 3.6]
B30: mv range | C30: [6 - 10 - 14]
D34: co wogas | E34: bv | F34: mv | J34: co wogas | K34: bv | L34: mv
C35: linear | D35: linear 80-100 | E35: linear 80-100 | F35: linear 80-100 | I35: linear | J35: linear 80-100 | K35: linear 80-100 | L35: linear 80-100
C36: 0.52 | D36: 0.471 | E36: 0.128 | F36: 0.336 | I36: 0.484 | J36: 0.4785 | K36: 0.0935 | L36: 0.3725
C37: 7.51 | D37: 3.76 | E37: 8.1 | F37: -5.58 | I37: 10.9 | J37: 0.6416666667 | K37: 7.431666667 | L37: -7.428333333
B39: 2019 XCF 350 | C39: SFF /2 | H39: 2018 SXF 350 | I39: SFF /2
B40: 3561 | C40: co wgas | D40: co wogas | E40: bv force | F40: mv force | H40: 3533 | I40: co wgas | J40: co wogas | K40: bv force | L40: mv force
B41: ips | C41: [act] | D41: [bv+mv+drag] | E41: [act] | F41: [act] | H41: ips | I41: [act] | J41: [bv+mv+drag] | K41: [act] | L41: [act]
B42: 1 | C42: 9.36 | D42: 1.7 | E42: 0.3 | F42: -0.55 | H42: 1 | I42: 12.55 | J42: 2.51 | K42: 0.5 | L42: 0.06
B43: 2 | C43: 9.8 | D43: 2.14 | E43: 0.72 | F43: -0.12 | H43: 2 | I43: 13.29 | J43: 3.3 | K43: 1.31 | L43: 0.12
B44: 3 | C44: 10.46 | D44: 2.85 | E44: 1.29 | F44: -0.12 | H44: 3 | I44: 14.2 | J44: 4.22 | K44: 2.31 | L44: 0.06
B45: 4 | C45: 11.09 | D45: 3.53 | E45: 1.87 | F45: 0.18 | H45: 4 | I45: 15.2 | J45: 5.3 | K45: 3.35 | L45: 0.31
B46: 5 | C46: 11.89 | D46: 4.4 | E46: 2.53 | F46: 0.06 | H46: 5 | I46: 15.89 | J46: 5.99 | K46: 4.09 | L46: 0.49
B47: 10 | C47: 15.1 | D47: 7.63 | E47: 4.82 | F47: 0.86 | H47: 10 | I47: 18 | J47: 8.21 | K47: 5.85 | L47: 0.74
B48: 20 | C48: 20.16 | D48: 12.74 | E48: 7.7 | F48: 3.33 | H48: 20 | I48: 22.15 | J48: 12.4 | K48: 7.73 | L48: 2.71
B49: 30 | C49: 25.05 | D49: 17.62 | E49: 9.82 | F49: 5.79 | H49: 30 | I49: 26.6 | J49: 16.86 | K49: 9.24 | L49: 5.73
B50: 40 | C50: 29.9 | D50: 22.48 | E50: 11.76 | F50: 8.81 | H50: 40 | I50: 31.3 | J50: 21.58 | K50: 10.64 | L50: 9.3
B51: 50 | C51: 35.01 | D51: 27.49 | E51: 13.57 | F51: 11.77 | H51: 50 | I51: 35.91 | J51: 26.13 | K51: 11.82 | L51: 12.63
B52: 60 | C52: 40.2 | D52: 32.57 | E52: 15.45 | F52: 15.15 | H52: 60 | I52: 40.3 | J52: 30.42 | K52: 12.97 | L52: 15.83
B53: 70 | C53: 44.5 | D53: 36.73 | E53: 16.82 | F53: 17.74 | H53: 70 | I53: 44.9 | J53: 34.83 | K53: 14.07 | L53: 19.28
B54: 80 | C54: 49.45 | D54: 41.47 | E54: 18.34 | F54: 21.37 | H54: 80 | I54: 49.15 | J54: 38.85 | K54: 14.92 | L54: 22.36
B55: 90 | C55: 54.31 | D55: 46.09 | E55: 19.62 | F55: 24.52 | H55: 90 | I55: 54.46 | J55: 43.85 | K55: 15.83 | L55: 26.12
B56: 100 | C56: 59.51 | D56: 50.89 | E56: 20.9 | F56: 28.09 | H56: 100 | I56: 59.3 | J56: 48.42 | K56: 16.79 | L56: 29.81
B58: IF linear 70-100
C59: linear 70-100 | I59: linear 70-100
C60: =INDEX(LINEST(D$53:D$56,($B$53:$B$56)^{1}),1) -> 0.471 | D60: =INDEX(LINEST(E$53:E$56,($B$53:$B$56)^{1}),1) -> 0.1352 | E60: =INDEX(LINEST(F$53:F$56,($B$53:$B$56)^{1}),1) -> 0.342 | I60: =INDEX(LINEST(J$53:J$56,($H$53:$H$56)^{1}),1) -> 0.4577 | J60: =INDEX(LINEST(K$53:K$56,($H$53:$H$56)^{1}),1) -> 0.0907 | K60: =INDEX(LINEST(L$53:L$56,($H$53:$H$56)^{1}),1) -> 0.3535
C61: =INDEX(LINEST(D$53:D$56,($B$53:$B$56)^{1}),1,2) -> 3.76 | D61: =INDEX(LINEST(E$53:E$56,($B$53:$B$56)^{1}),1,2) -> 7.428 | E61: =INDEX(LINEST(F$53:F$56,($B$53:$B$56)^{1}),1,2) -> -6.14 | I61: =INDEX(LINEST(J$53:J$56,($H$53:$H$56)^{1}),1,2) -> 2.583 | J61: =INDEX(LINEST(K$53:K$56,($H$53:$H$56)^{1}),1,2) -> 7.693 | K61: =INDEX(LINEST(L$53:L$56,($H$53:$H$56)^{1}),1,2) -> -5.655
B63: 150 | C63: =(C$60*$B63)+C$61 -> 74.41 | D63: =(D$60*$B63)+D$61 -> 27.708 | E63: 45.16 | F63: =C63/$B63 -> 0.4960666667 | H63: 150 | I63: =(I$60*$B63)+I$61 -> 71.238 | J63: 21.298 | K63: 47.37 | L63: =I63/$B63 -> 0.47492
B64: 400 | C64: =(C$60*$B64)+C$61 -> 192.16 | D64: 61.508 | E64: 130.66 | F64: =C64/$B64 -> 0.4804 | H64: 400 | I64: 185.663 | J64: 43.973 | K64: 135.745 | L64: =I64/$B64 -> 0.4641575
A89: end

Sheet print
D1: co wogas | E1: bv | F1: mv | Q1: vdb / excel / openDynoFk__copy_bv_mv_reb.xlsx
C2: linear | D2: linear 80-100 | E2: linear 80-100 | F2: linear 80-100 | H2: comments
C3: =INDEX(LINEST(C$22:C$23,($B$22:$B$23)^{1}),1) -> 0.25 | D3: =INDEX(LINEST(D$21:D$23,($B$21:$B$23)^{1}),1) -> 0.2405 | E3: =INDEX(LINEST(E$21:E$23,($B$21:$B$23)^{1}),1) -> 0.101 | F3: =INDEX(LINEST(F$21:F$23,($B$21:$B$23)^{1}),1) -> 0.115 | H3: Copy here and print. Put rec_id, bike and name here.
C4: =INDEX(LINEST(C$22:C$23,($B$22:$B$23)^{1}),1,2) -> 37.8 | D4: =INDEX(LINEST(D$21:D$23,($B$21:$B$23)^{1}),1,2) -> 24.07833333 | E4: =INDEX(LINEST(E$21:E$23,($B$21:$B$23)^{1}),1,2) -> 11.13 | F4: =INDEX(LINEST(F$21:F$23,($B$21:$B$23)^{1}),1,2) -> 12.49333333
B6: 2010 CRF 450 | C6: DFF x1
B7: 1497 | C7: co wgas | D7: co wogas | E7: bv force | F7: mv force | G7: gas force | H7: drag force | I7: ro wogas | J7: c damp
B8: ips | C8: [act] | D8: [bv+mv+drag] | E8: [act] | F8: [act] | G8: [act] | H8: [act] | I8: [act] | J8: coeff
B9: 1 | C9: 18.6 | D9: 5.15 | E9: 2.89 | F9: 0.2 | G9: 13.45 | H9: 2.06 | I9: -2.7 | J9: =D9/$B9 -> 5.15
B10: 2 | C10: 21 | D10: 7.46 | E10: 4.34 | F10: 0.87 | G10: 13.54 | H10: 2.25 | I10: -3.7 | J10: 3.73
B11: 3 | C11: 23 | D11: 9.53 | E11: 5.61 | F11: 1.48 | G11: 13.47 | H11: 2.44 | I11: -4.8 | J11: 3.176666667
B12: 4 | C12: 24.9 | D12: 11.45 | E12: 6.68 | F12: 2.45 | G12: 13.45 | H12: 2.32 | I12: -6.4 | J12: 2.8625
B13: 5 | C13: 26 | D13: 12.49 | E13: 7.19 | F13: 2.91 | G13: 13.51 | H13: 2.39 | I13: -8.5 | J13: 2.498
B14: 10 | C14: 30 | D14: 16.51 | E14: 9.11 | F14: 5.11 | G14: 13.49 | H14: 2.29 | I14: -19.9 | J14: 1.651
B15: 20 | C15: 35.4 | D15: 21.89 | E15: 11.34 | F15: 8.18 | G15: 13.51 | H15: 2.38 | I15: -42 | J15: 1.0945
B16: 30 | C16: 40.6 | D16: 27.09 | E16: 13.03 | F16: 11.75 | G16: 13.51 | H16: 2.31 | I16: -64.4 | J16: 0.903
B17: 40 | C17: 46.2 | D17: 32.66 | E17: 14.63 | F17: 15.79 | G17: 13.54 | H17: 2.24 | I17: -88.1 | J17: 0.8165
A18: =E18-E17 -> 1.37 | B18: 50 | C18: 50.9 | D18: 37.39 | E18: 16 | F18: 18.8 | G18: 13.51 | H18: 2.59 | I18: -113.4 | J18: 0.7478
A19: =E19-E18 -> 1.18 | B19: 60 | C19: 53.2 | D19: 39.5 | E19: 17.18 | F19: 19.88 | G19: 13.7 | H19: 2.45 | I19: -137.2 | J19: 0.6583333333
A20: =E20-E19 -> 1.06 | B20: 70 | C20: 55.2 | D20: 41.31 | E20: 18.24 | F20: 20.7 | G20: 13.89 | H20: 2.38 | I20: -160.9 | J20: 0.5901428571
A21: =E21-E20 -> 0.95 | B21: 80 | C21: 57.4 | D21: 43.23 | E21: 19.19 | F21: 21.72 | G21: 14.17 | H21: 2.32 | I21: 0 | J21: 0.540375
A22: =E22-E21 -> 1.07 | B22: 90 | C22: 60.3 | D22: 45.9 | E22: 20.26 | F22: 22.79 | G22: 14.4 | H22: 2.85 | I22: 0 | J22: 0.51
A23: 0.95 | B23: 100 | C23: 62.8 | D23: 48.04 | E23: 21.21 | F23: 24.02 | G23: 14.76 | H23: 2.81 | I23: 0 | J23: 0.4804
B24: 150 | C24: =(C$3*$B24)+C$4 -> 75.3 | D24: =(D$3*$B24)+D$4 -> 60.15333333 | E24: =(E$3*$B24)+E$4 -> 26.28 | F24: =(F$3*$B24)+F$4 -> 29.74333333 | J24: 0.4010222222
B25: 400 | C25: =(C$3*$B25)+C$4 -> 137.8 | D25: 120.2783333 | E25: 51.53 | F25: 58.49333333 | J25: 0.3006958333
B27: 150ips 2151 | C27: 97.05 | D27: 84.04 | E27: 26.53333333 | F27: 53.7 | J27: 0.5602666667
B28: 400ips 2151 | C28: 237.3 | D28: 223.54 | E28: 56.90833333 | F28: 159.075 | J28: 0.55885
E34: bv
E35: linear
E36: =INDEX(LINEST(E$40:E$42,($B$40:$B$42)^{1}),1) -> 0.101
E37: =INDEX(LINEST(E$40:E$42,($B$40:$B$42)^{1}),1,2) -> 11.13
B39: 70 | C39: 55.2 | D39: 41.31 | E39: =E20 -> 18.24
A40: =E40-E39 -> 0.95 | B40: 80 | C40: =C21 -> 57.4 | D40: 43.23 | E40: =E21 -> 19.19
A41: =E41-E40 -> 1.07 | B41: 90 | C41: 60.3 | D41: 45.9 | E41: =E22 -> 20.26
A42: 0.95 | B42: 100 | C42: 62.8 | D42: 48.04 | E42: =E23 -> 21.21
B43: 70 | E43: =(E$36*$B43)+E$37 -> 18.2
A44: =E44-E43 -> 1.01 | B44: 80 | E44: =(E$36*$B44)+E$37 -> 19.21 | F44: =E44-E40 -> 0.02
A45: =E45-E44 -> 1.01 | B45: 90 | E45: 20.22 | F45: =E45-E41 -> -0.04
A46: 1.01 | B46: 100 | E46: 21.23 | F46: 0.02

Sheet 1497
D1: co wogas | E1: bv | F1: mv | Q1: vdb / excel / openDynoFk__copy_bv_mv_reb.xlsx
C2: linear | D2: linear 80-100 | E2: linear 80-100 | F2: linear 80-100 | H2: comments
C3: =INDEX(LINEST(C$22:C$23,($B$22:$B$23)^{1}),1) -> 0.25 | D3: =INDEX(LINEST(D$21:D$23,($B$21:$B$23)^{1}),1) -> 0.2405 | E3: =INDEX(LINEST(E$21:E$23,($B$21:$B$23)^{1}),1) -> 0.101 | F3: =INDEX(LINEST(F$21:F$23,($B$21:$B$23)^{1}),1) -> 0.115 | H3: Wolf's mv wave spring.
C4: =INDEX(LINEST(C$22:C$23,($B$22:$B$23)^{1}),1,2) -> 37.8 | D4: =INDEX(LINEST(D$21:D$23,($B$21:$B$23)^{1}),1,2) -> 24.07833333 | E4: =INDEX(LINEST(E$21:E$23,($B$21:$B$23)^{1}),1,2) -> 11.13 | F4: =INDEX(LINEST(F$21:F$23,($B$21:$B$23)^{1}),1,2) -> 12.49333333
B6: 2010 CRF 450 | C6: DFF x1
B7: 1497 | C7: co wgas | D7: co wogas | E7: bv force | F7: mv force | G7: gas force | H7: drag force | I7: ro wogas | J7: c damp
B8: ips | C8: [act] | D8: [bv+mv+drag] | E8: [act] | F8: [act] | G8: [act] | H8: [act] | I8: [act] | J8: coeff
B9: 1 | C9: 18.6 | D9: 5.15 | E9: 2.89 | F9: 0.2 | G9: 13.45 | H9: 2.06 | I9: -2.7 | J9: =D9/$B9 -> 5.15
B10: 2 | C10: 21 | D10: 7.46 | E10: 4.34 | F10: 0.87 | G10: 13.54 | H10: 2.25 | I10: -3.7 | J10: 3.73
B11: 3 | C11: 23 | D11: 9.53 | E11: 5.61 | F11: 1.48 | G11: 13.47 | H11: 2.44 | I11: -4.8 | J11: 3.176666667
B12: 4 | C12: 24.9 | D12: 11.45 | E12: 6.68 | F12: 2.45 | G12: 13.45 | H12: 2.32 | I12: -6.4 | J12: 2.8625
B13: 5 | C13: 26 | D13: 12.49 | E13: 7.19 | F13: 2.91 | G13: 13.51 | H13: 2.39 | I13: -8.5 | J13: 2.498
B14: 10 | C14: 30 | D14: 16.51 | E14: 9.11 | F14: 5.11 | G14: 13.49 | H14: 2.29 | I14: -19.9 | J14: 1.651
B15: 20 | C15: 35.4 | D15: 21.89 | E15: 11.34 | F15: 8.18 | G15: 13.51 | H15: 2.38 | I15: -42 | J15: 1.0945
B16: 30 | C16: 40.6 | D16: 27.09 | E16: 13.03 | F16: 11.75 | G16: 13.51 | H16: 2.31 | I16: -64.4 | J16: 0.903
B17: 40 | C17: 46.2 | D17: 32.66 | E17: 14.63 | F17: 15.79 | G17: 13.54 | H17: 2.24 | I17: -88.1 | J17: 0.8165
A18: =E18-E17 -> 1.37 | B18: 50 | C18: 50.9 | D18: 37.39 | E18: 16 | F18: 18.8 | G18: 13.51 | H18: 2.59 | I18: -113.4 | J18: 0.7478
A19: =E19-E18 -> 1.18 | B19: 60 | C19: 53.2 | D19: 39.5 | E19: 17.18 | F19: 19.88 | G19: 13.7 | H19: 2.45 | I19: -137.2 | J19: 0.6583333333
A20: =E20-E19 -> 1.06 | B20: 70 | C20: 55.2 | D20: 41.31 | E20: 18.24 | F20: 20.7 | G20: 13.89 | H20: 2.38 | I20: -160.9 | J20: 0.5901428571
A21: =E21-E20 -> 0.95 | B21: 80 | C21: 57.4 | D21: 43.23 | E21: 19.19 | F21: 21.72 | G21: 14.17 | H21: 2.32 | I21: 0 | J21: 0.540375
A22: =E22-E21 -> 1.07 | B22: 90 | C22: 60.3 | D22: 45.9 | E22: 20.26 | F22: 22.79 | G22: 14.4 | H22: 2.85 | I22: 0 | J22: 0.51
A23: 0.95 | B23: 100 | C23: 62.8 | D23: 48.04 | E23: 21.21 | F23: 24.02 | G23: 14.76 | H23: 2.81 | I23: 0 | J23: 0.4804
B24: 150 | C24: =(C$3*$B24)+C$4 -> 75.3 | D24: =(D$3*$B24)+D$4 -> 60.15333333 | E24: =(E$3*$B24)+E$4 -> 26.28 | F24: =(F$3*$B24)+F$4 -> 29.74333333 | J24: 0.4010222222
B25: 400 | C25: =(C$3*$B25)+C$4 -> 137.8 | D25: 120.2783333 | E25: 51.53 | F25: 58.49333333 | J25: 0.3006958333
B27: 150ips 2151 | C27: 97.05 | D27: 84.04 | E27: 26.53333333 | F27: 53.7 | J27: 0.5602666667
B28: 400ips 2151 | C28: 237.3 | D28: 223.54 | E28: 56.90833333 | F28: 159.075 | J28: 0.55885
E34: bv
E35: linear
E36: =INDEX(LINEST(E$40:E$42,($B$40:$B$42)^{1}),1) -> 0.101
E37: =INDEX(LINEST(E$40:E$42,($B$40:$B$42)^{1}),1,2) -> 11.13
B39: 70 | C39: 55.2 | D39: 41.31 | E39: =E20 -> 18.24
A40: =E40-E39 -> 0.95 | B40: 80 | C40: =C21 -> 57.4 | D40: 43.23 | E40: =E21 -> 19.19
A41: =E41-E40 -> 1.07 | B41: 90 | C41: 60.3 | D41: 45.9 | E41: =E22 -> 20.26
A42: 0.95 | B42: 100 | C42: 62.8 | D42: 48.04 | E42: =E23 -> 21.21
B43: 70 | E43: =(E$36*$B43)+E$37 -> 18.2
A44: =E44-E43 -> 1.01 | B44: 80 | E44: =(E$36*$B44)+E$37 -> 19.21 | F44: =E44-E40 -> 0.02
A45: =E45-E44 -> 1.01 | B45: 90 | E45: 20.22 | F45: =E45-E41 -> -0.04
A46: 1.01 | B46: 100 | E46: 21.23 | F46: 0.02

Sheet 3531
D1: co wogas | E1: bv | F1: mv | Q1: vdb / excel / openDynoFk__copy_bv_mv_reb.xlsx
C2: linear | D2: linear 80-100 | E2: linear 80-100 | F2: linear 80-100 | H2: comments
C3: =INDEX(LINEST(C$22:C$23,($B$22:$B$23)^{1}),1) -> 0.52 | D3: =INDEX(LINEST(D$21:D$23,($B$21:$B$23)^{1}),1) -> 0.502 | E3: =INDEX(LINEST(E$21:E$23,($B$21:$B$23)^{1}),1) -> 0.091 | F3: =INDEX(LINEST(F$21:F$23,($B$21:$B$23)^{1}),1) -> 0.3935 | H3: Showa convers forks
C4: =INDEX(LINEST(C$22:C$23,($B$22:$B$23)^{1}),1,2) -> 10 | D4: =INDEX(LINEST(D$21:D$23,($B$21:$B$23)^{1}),1,2) -> -0.1933333333 | E4: =INDEX(LINEST(E$21:E$23,($B$21:$B$23)^{1}),1,2) -> 8.55 | F4: =INDEX(LINEST(F$21:F$23,($B$21:$B$23)^{1}),1,2) -> -9.235
B6: 2010 CRF 250 | C6: DFF x1
B7: 3531 | C7: co wgas | D7: co wogas | E7: bv force | F7: mv force | G7: gas force | H7: drag force | I7: ro wogas | J7: c damp
B8: ips | C8: [act] | D8: [bv+mv+drag] | E8: [act] | F8: [act] | G8: [act] | H8: [act] | I8: [act] | J8: coeff
B9: 1 | C9: 13.59 | D9: 2.29 | E9: 0.51 | F9: 0.15 | G9: 11.3 | H9: 1.63 | I9: -2.4 | J9: =D9/$B9 -> 2.29
B10: 2 | C10: 14.49 | D10: 3.25 | E10: 1.33 | F10: 0.15 | G10: 11.24 | H10: 1.77 | I10: -3.5 | J10: 1.625
B11: 3 | C11: 15.6 | D11: 4.38 | E11: 2.4 | F11: 0.31 | G11: 11.22 | H11: 1.67 | I11: -5 | J11: 1.46
B12: 4 | C12: 16.8 | D12: 5.63 | E12: 3.54 | F12: 0.15 | G12: 11.17 | H12: 1.94 | I12: -6.6 | J12: 1.4075
B13: 5 | C13: 17.5 | D13: 6.37 | E13: 4.32 | F13: 0.15 | G13: 11.13 | H13: 1.9 | I13: -8.6 | J13: 1.274
B14: 10 | C14: 20.1 | D14: 8.99 | E14: 6.24 | F14: 0.87 | G14: 11.11 | H14: 1.88 | I14: -19.7 | J14: 0.899
B15: 20 | C15: 23.99 | D15: 12.96 | E15: 8.33 | F15: 2.86 | G15: 11.03 | H15: 1.77 | I15: -40.8 | J15: 0.648
B16: 30 | C16: 28 | D16: 16.91 | E16: 9.8 | F16: 5.11 | G16: 11.09 | H16: 2 | I16: -62.8 | J16: 0.5636666667
B17: 40 | C17: 32.2 | D17: 21.13 | E17: 11.28 | F17: 8.12 | G17: 11.07 | H17: 1.73 | I17: -85.6 | J17: 0.52825
A18: =E18-E17 -> 1.39 | B18: 50 | C18: 36.8 | D18: 25.69 | E18: 12.67 | F18: 11.34 | G18: 11.11 | H18: 1.68 | I18: -109.8 | J18: 0.5138
A19: =E19-E18 -> 1.1 | B19: 60 | C19: 41.59 | D19: 30.37 | E19: 13.77 | F19: 14.61 | G19: 11.22 | H19: 1.99 | I19: -133.9 | J19: 0.5061666667
A20: =E20-E19 -> 1.05 | B20: 70 | C20: 46.5 | D20: 35.14 | E20: 14.82 | F20: 18.34 | G20: 11.36 | H20: 1.98 | I20: -157.8 | J20: 0.502
A21: =E21-E20 -> 1.01 | B21: 80 | C21: 51.51 | D21: 39.94 | E21: 15.83 | F21: 22.28 | G21: 11.57 | H21: 1.83 | I21: 0 | J21: 0.49925
A22: =E22-E21 -> 0.91 | B22: 90 | C22: 56.8 | D22: 45.04 | E22: 16.74 | F22: 26.11 | G22: 11.76 | H22: 2.19 | I22: 0 | J22: 0.5004444444
A23: 0.91 | B23: 100 | C23: 62 | D23: 49.98 | E23: 17.65 | F23: 30.15 | G23: 12.02 | H23: 2.18 | I23: 0 | J23: 0.4998
B24: 150 | C24: =(C$3*$B24)+C$4 -> 88 | D24: =(D$3*$B24)+D$4 -> 75.10666667 | E24: =(E$3*$B24)+E$4 -> 22.2 | F24: =(F$3*$B24)+F$4 -> 49.79 | J24: 0.5007111111
B25: 400 | C25: =(C$3*$B25)+C$4 -> 218 | D25: 200.6066667 | E25: 44.95 | F25: 148.165 | J25: 0.5015166667
B27: 150ips 2151 | C27: 97.05 | D27: 84.04 | E27: 26.53333333 | F27: 53.7 | J27: 0.5602666667
B28: 400ips 2151 | C28: 237.3 | D28: 223.54 | E28: 56.90833333 | F28: 159.075 | J28: 0.55885
E34: bv
E35: linear
E36: =INDEX(LINEST(E$40:E$42,($B$40:$B$42)^{1}),1) -> 0.091
E37: =INDEX(LINEST(E$40:E$42,($B$40:$B$42)^{1}),1,2) -> 8.55
B39: 70 | C39: 55.2 | D39: 41.31 | E39: =E20 -> 14.82
A40: =E40-E39 -> 1.01 | B40: 80 | C40: =C21 -> 51.51 | D40: 39.94 | E40: =E21 -> 15.83
A41: =E41-E40 -> 0.91 | B41: 90 | C41: 56.8 | D41: 45.04 | E41: =E22 -> 16.74
A42: 0.91 | B42: 100 | C42: 62 | D42: 49.98 | E42: =E23 -> 17.65
B43: 70 | E43: =(E$36*$B43)+E$37 -> 14.92
A44: =E44-E43 -> 0.91 | B44: 80 | E44: =(E$36*$B44)+E$37 -> 15.83 | F44: =E44-E40 -> 0
A45: =E45-E44 -> 0.91 | B45: 90 | E45: 16.74 | F45: =E45-E41 -> 0
A46: 0.91 | B46: 100 | E46: 17.65 | F46: 0

Sheet 2151
D1: co wogas | E1: bv | F1: mv | Q1: vdb / excel / openDynoFk__copy_bv_mv_reb.xlsx
C2: linear | D2: linear 80-100 | E2: linear 80-100 | F2: linear 80-100 | H2: comments
C3: =INDEX(LINEST(C$22:C$23,($B$22:$B$23)^{1}),1) -> 0.561 | D3: =INDEX(LINEST(D$21:D$23,($B$21:$B$23)^{1}),1) -> 0.558 | E3: =INDEX(LINEST(E$21:E$23,($B$21:$B$23)^{1}),1) -> 0.1215 | F3: =INDEX(LINEST(F$21:F$23,($B$21:$B$23)^{1}),1) -> 0.4215 | H3: KYB standard
C4: =INDEX(LINEST(C$22:C$23,($B$22:$B$23)^{1}),1,2) -> 12.9 | D4: =INDEX(LINEST(D$21:D$23,($B$21:$B$23)^{1}),1,2) -> 0.34 | E4: =INDEX(LINEST(E$21:E$23,($B$21:$B$23)^{1}),1,2) -> 8.308333333 | F4: =INDEX(LINEST(F$21:F$23,($B$21:$B$23)^{1}),1,2) -> -9.525
B6: 2013 YZ 250 | C6: DFF x1
B7: 2151 | C7: co wgas | D7: co wogas | E7: bv force | F7: mv force | G7: gas force | H7: drag force | I7: ro wogas | J7: c damp
B8: ips | C8: [act] | D8: [bv+mv+drag] | E8: [act] | F8: [act] | G8: [act] | H8: [act] | I8: [act] | J8: coeff
B9: 1 | C9: 14.29 | D9: 2.1 | E9: 0.7 | F9: -0.05 | G9: 12.19 | H9: 1.45 | I9: -2 | J9: =D9/$B9 -> 2.1
B10: 2 | C10: 15.5 | D10: 3.36 | E10: 1.65 | F10: -0.05 | G10: 12.14 | H10: 1.76 | I10: -3.1 | J10: 1.68
B11: 3 | C11: 16.89 | D11: 4.74 | E11: 2.87 | F11: -0.05 | G11: 12.15 | H11: 1.92 | I11: -4.6 | J11: 1.58
B12: 4 | C12: 18.51 | D12: 6.37 | E12: 4.17 | F12: 0.05 | G12: 12.14 | H12: 2.15 | I12: -6 | J12: 1.5925
B13: 5 | C13: 19.6 | D13: 7.54 | E13: 5.21 | F13: 0.1 | G13: 12.06 | H13: 2.23 | I13: -7.8 | J13: 1.508
B14: 10 | C14: 22.5 | D14: 10.44 | E14: 7.13 | F14: 0.87 | G14: 12.06 | H14: 2.44 | I14: -16.7 | J14: 1.044
B15: 20 | C15: 26.91 | D15: 14.98 | E15: 9.47 | F15: 3.07 | G15: 11.93 | H15: 2.44 | I15: -36.4 | J15: 0.749
B16: 30 | C16: 31.21 | D16: 19.26 | E16: 11.15 | F16: 5.62 | G16: 11.95 | H16: 2.49 | I16: -57.2 | J16: 0.642
B17: 40 | C17: 35.7 | D17: 23.83 | E17: 12.71 | F17: 8.38 | G17: 11.87 | H17: 2.74 | I17: -79.7 | J17: 0.59575
A18: =E18-E17 -> 1.5 | B18: 50 | C18: 40.91 | D18: 28.96 | E18: 14.21 | F18: 11.86 | G18: 11.95 | H18: 2.89 | I18: -105.5 | J18: 0.5792
A19: =E19-E18 -> 1.35 | B19: 60 | C19: 46.2 | D19: 34.12 | E19: 15.56 | F19: 15.79 | G19: 12.08 | H19: 2.77 | I19: -131.9 | J19: 0.5686666667
A20: =E20-E19 -> 1.22 | B20: 70 | C20: 51.5 | D20: 39.27 | E20: 16.78 | F20: 19.67 | G20: 12.23 | H20: 2.82 | I20: -157.1 | J20: 0.561
A21: =E21-E20 -> 1.2 | B21: 80 | C21: 57.31 | D21: 44.87 | E21: 17.98 | F21: 24.12 | G21: 12.44 | H21: 2.77 | I21: 0 | J21: 0.560875
A22: =E22-E21 -> 1.36 | B22: 90 | C22: 63.39 | D22: 50.78 | E22: 19.34 | F22: 28.56 | G22: 12.61 | H22: 2.88 | I22: 0 | J22: 0.5642222222
A23: 1.07 | B23: 100 | C23: 69 | D23: 56.03 | E23: 20.41 | F23: 32.55 | G23: 12.97 | H23: 3.07 | I23: 0 | J23: 0.5603
B24: 150 | C24: =(C$3*$B24)+C$4 -> 97.05 | D24: =(D$3*$B24)+D$4 -> 84.04 | E24: =(E$3*$B24)+E$4 -> 26.53333333 | F24: =(F$3*$B24)+F$4 -> 53.7 | J24: 0.5602666667
B25: 400 | C25: =(C$3*$B25)+C$4 -> 237.3 | D25: 223.54 | E25: 56.90833333 | F25: 159.075 | J25: 0.55885
B27: 150ips 2151 | C27: 97.05 | D27: 84.04 | E27: 26.53333333 | F27: 53.7 | J27: 0.5602666667
B28: 400ips 2151 | C28: 237.3 | D28: 223.54 | E28: 56.90833333 | F28: 159.075 | J28: 0.55885
E34: bv
E35: linear
E36: =INDEX(LINEST(E$40:E$42,($B$40:$B$42)^{1}),1) -> 0.1215
E37: =INDEX(LINEST(E$40:E$42,($B$40:$B$42)^{1}),1,2) -> 8.308333333
B39: 70 | C39: 55.2 | D39: 41.31 | E39: =E20 -> 16.78
A40: =E40-E39 -> 1.2 | B40: 80 | C40: =C21 -> 57.31 | D40: 44.87 | E40: =E21 -> 17.98
A41: =E41-E40 -> 1.36 | B41: 90 | C41: 63.39 | D41: 50.78 | E41: =E22 -> 19.34
A42: 1.07 | B42: 100 | C42: 69 | D42: 56.03 | E42: =E23 -> 20.41
B43: 70 | E43: =(E$36*$B43)+E$37 -> 16.81333333
A44: =E44-E43 -> 1.215 | B44: 80 | E44: =(E$36*$B44)+E$37 -> 18.02833333 | F44: =E44-E40 -> 0.04833333333
A45: =E45-E44 -> 1.215 | B45: 90 | E45: 19.24333333 | F45: =E45-E41 -> -0.09666666667
A46: 1.215 | B46: 100 | E46: 20.45833333 | F46: 0.04833333333

Sheet 3253
D1: co wogas | E1: bv | F1: mv | Q1: vdb / excel / openDynoFk__copy_bv_mv_reb.xlsx
C2: linear | D2: linear 80-100 | E2: linear 80-100 | F2: linear 80-100 | H2: comments
C3: =INDEX(LINEST(C$22:C$23,($B$22:$B$23)^{1}),1) -> 0.639 | D3: =INDEX(LINEST(D$21:D$23,($B$21:$B$23)^{1}),1) -> 0.6305 | E3: =INDEX(LINEST(E$21:E$23,($B$21:$B$23)^{1}),1) -> 0.132 | F3: =INDEX(LINEST(F$21:F$23,($B$21:$B$23)^{1}),1) -> 0.47 | H3: 4CS
C4: =INDEX(LINEST(C$22:C$23,($B$22:$B$23)^{1}),1,2) -> -5.6 | D4: =INDEX(LINEST(D$21:D$23,($B$21:$B$23)^{1}),1,2) -> -10.42166667 | E4: =INDEX(LINEST(E$21:E$23,($B$21:$B$23)^{1}),1,2) -> 5.21 | F4: =INDEX(LINEST(F$21:F$23,($B$21:$B$23)^{1}),1,2) -> -16.10666667
B6: 2015 XCF 350 | C6: DFF x1
B7: 3253 | C7: co wgas | D7: co wogas | E7: bv force | F7: mv force | G7: gas force | H7: drag force | I7: ro wogas | J7: c damp
B8: ips | C8: [act] | D8: [bv+mv+drag] | E8: [act] | F8: [act] | G8: [act] | H8: [act] | I8: [act] | J8: coeff
B9: 1 | C9: 7.99 | D9: 2.99 | E9: 0.69 | F9: 0.45 | G9: 5 | H9: 1.85 | I9: -1.6 | J9: =D9/$B9 -> 2.99
B10: 2 | C10: 8.79 | D10: 3.73 | E10: 1.32 | F10: 0.53 | G10: 5.06 | H10: 1.88 | I10: -2.8 | J10: 1.865
B11: 3 | C11: 9.4 | D11: 4.3 | E11: 1.83 | F11: 0.49 | G11: 5.1 | H11: 1.98 | I11: -4.6 | J11: 1.433333333
B12: 4 | C12: 10 | D12: 4.87 | E12: 2.38 | F12: 0.49 | G12: 5.13 | H12: 2 | I12: -6.4 | J12: 1.2175
B13: 5 | C13: 10.49 | D13: 5.36 | E13: 2.92 | F13: 0.65 | G13: 5.13 | H13: 1.79 | I13: -8.7 | J13: 1.072
B14: 10 | C14: 12.7 | D14: 7.56 | E14: 4.91 | F14: 0.82 | G14: 5.14 | H14: 1.83 | I14: -18.3 | J14: 0.756
B15: 20 | C15: 16.2 | D15: 11.1 | E15: 7.37 | F15: 1.96 | G15: 5.1 | H15: 1.77 | I15: -33.4 | J15: 0.555
B16: 30 | C16: 20 | D16: 14.94 | E16: 9.15 | F16: 4.01 | G16: 5.06 | H16: 1.78 | I16: -48.1 | J16: 0.498
B17: 40 | C17: 24.2 | D17: 19.15 | E17: 10.63 | F17: 6.54 | G17: 5.05 | H17: 1.98 | I17: -61.6 | J17: 0.47875
A18: =E18-E17 -> 1.39 | B18: 50 | C18: 28.8 | D18: 23.74 | E18: 12.02 | F18: 9.41 | G18: 5.06 | H18: 2.31 | I18: -75.6 | J18: 0.4748
A19: =E19-E18 -> 1.46 | B19: 60 | C19: 34.2 | D19: 29.11 | E19: 13.48 | F19: 13.21 | G19: 5.09 | H19: 2.42 | I19: -89.4 | J19: 0.4851666667
A20: =E20-E19 -> 1.21 | B20: 70 | C20: 39.4 | D20: 34.2 | E20: 14.69 | F20: 17.06 | G20: 5.2 | H20: 2.45 | I20: -102 | J20: 0.4885714286
A21: =E21-E20 -> 1.07 | B21: 80 | C21: 45.3 | D21: 39.97 | E21: 15.76 | F21: 21.52 | G21: 5.33 | H21: 2.69 | I21: 0 | J21: 0.499625
A22: =E22-E21 -> 1.35 | B22: 90 | C22: 51.91 | D22: 46.42 | E22: 17.11 | F22: 26.14 | G22: 5.49 | H22: 3.17 | I22: 0 | J22: 0.5157777778
A23: 1.29 | B23: 100 | C23: 58.3 | D23: 52.58 | E23: 18.4 | F23: 30.92 | G23: 5.72 | H23: 3.26 | I23: 0 | J23: 0.5258
B24: 150 | C24: =(C$3*$B24)+C$4 -> 90.25 | D24: =(D$3*$B24)+D$4 -> 84.15333333 | E24: =(E$3*$B24)+E$4 -> 25.01 | F24: =(F$3*$B24)+F$4 -> 54.39333333 | J24: 0.5610222222
B25: 400 | C25: =(C$3*$B25)+C$4 -> 250 | D25: 241.7783333 | E25: 58.01 | F25: 171.8933333 | J25: 0.6044458333
B27: 150ips 2151 | C27: 97.05 | D27: 84.04 | E27: 26.53333333 | F27: 53.7 | J27: 0.5602666667
B28: 400ips 2151 | C28: 237.3 | D28: 223.54 | E28: 56.90833333 | F28: 159.075 | J28: 0.55885
E35: bv
E36: poly 3
E37: =INDEX(LINEST(E$41:E$47,($B$41:$B$47)^{1,2}),1) -> -0.0001583333333
E38: =INDEX(LINEST(E$41:E$47,($B$41:$B$47)^{1,2}),1,2) -> 0.1499166667
E39: =INDEX(LINEST(E$41:E$47,($B$41:$B$47)^{1,2}),1,3) -> 4.929285714
B41: 40 | C41: =C17 -> 24.2 | D41: =D17 -> 19.15 | E41: 10.63
A42: =E42-E41 -> 1.39 | B42: 50 | C42: =C18 -> 28.8 | D42: 23.74 | E42: 12.02
A43: =E43-E42 -> 1.46 | B43: 60 | C43: 34.2 | D43: 29.11 | E43: 13.48
A44: =E44-E43 -> 1.21 | B44: 70 | C44: 39.4 | D44: 34.2 | E44: 14.69
A45: =E45-E44 -> 1.07 | B45: 80 | C45: 45.3 | D45: 39.97 | E45: 15.76
A46: =E46-E45 -> 1.35 | B46: 90 | C46: 51.91 | D46: 46.42 | E46: 17.11
A47: 1.29 | B47: 100 | C47: 58.3 | D47: 52.58 | E47: 18.4
B48: 40 | E48: =(E$37*(B41)^2)+(E$38*(B41)^1)+(E$39) -> 10.67261905 | F48: =E48-E41 -> 0.04261904762
A49: =E49-E48 -> 1.356666667 | B49: 50 | E49: =(E$37*(B42)^2)+(E$38*(B42)^1)+(E$39) -> 12.02928571 | F49: =E49-E42 -> 0.009285714286
A50: =E50-E49 -> 1.325 | B50: 60 | E50: 13.35428571 | F50: -0.1257142857
A51: =E51-E50 -> 1.293333333 | B51: 70 | E51: 14.64761905 | F51: -0.04238095238
A52: =E52-E51 -> 1.261666667 | B52: 80 | E52: 15.90928571 | F52: 0.1492857143
A53: =E53-E52 -> 1.23 | B53: 90 | E53: 17.13928571 | F53: 0.02928571429
A54: 1.198333333 | B54: 100 | E54: 18.33761905 | F54: -0.06238095238

Sheet 3391
D1: co wogas | E1: bv | F1: mv | Q1: vdb / excel / openDynoFk__copy_bv_mv_reb.xlsx
C2: linear | D2: linear 80-100 | E2: linear 80-100 | F2: linear 80-100 | H2: comments
C3: =INDEX(LINEST(C$22:C$23,($B$22:$B$23)^{1}),1) -> 0.52 | D3: =INDEX(LINEST(D$21:D$23,($B$21:$B$23)^{1}),1) -> 0.5085 | E3: =INDEX(LINEST(E$21:E$23,($B$21:$B$23)^{1}),1) -> 0.1455 | F3: =INDEX(LINEST(F$21:F$23,($B$21:$B$23)^{1}),1) -> 0.3565 | H3: Blue's 2013 tc bladder forks
C4: =INDEX(LINEST(C$22:C$23,($B$22:$B$23)^{1}),1,2) -> 3.01 | D4: =INDEX(LINEST(D$21:D$23,($B$21:$B$23)^{1}),1,2) -> -1.655 | E4: =INDEX(LINEST(E$21:E$23,($B$21:$B$23)^{1}),1,2) -> 4.841666667 | F4: =INDEX(LINEST(F$21:F$23,($B$21:$B$23)^{1}),1,2) -> -8.101666667
B6: 2014 SXF 350 | C6: DFF x1
B7: 3391 | C7: co wgas | D7: co wogas | E7: bv force | F7: mv force | G7: gas force | H7: drag force | I7: ro wogas | J7: c damp
B8: ips | C8: [act] | D8: [bv+mv+drag] | E8: [act] | F8: [act] | G8: [act] | H8: [act] | I8: [act] | J8: coeff
B9: 1 | C9: 7.61 | D9: 1.82 | E9: 0.25 | F9: 0.56 | G9: 5.79 | H9: 1.01 | I9: -1.8 | J9: =D9/$B9 -> 1.82
B10: 2 | C10: 8.21 | D10: 2.42 | E10: 0.81 | F10: 0.75 | G10: 5.79 | H10: 0.86 | I10: -3.5 | J10: 1.21
B11: 3 | C11: 9 | D11: 3.18 | E11: 1.4 | F11: 0.75 | G11: 5.82 | H11: 1.03 | I11: -5.4 | J11: 1.06
B12: 4 | C12: 10 | D12: 4.2 | E12: 2.02 | F12: 0.75 | G12: 5.8 | H12: 1.43 | I12: -7.2 | J12: 1.05
B13: 5 | C13: 10.5 | D13: 4.64 | E13: 2.45 | F13: 0.75 | G13: 5.86 | H13: 1.44 | I13: -9 | J13: 0.928
B14: 10 | C14: 12.2 | D14: 6.45 | E14: 4.12 | F14: 0.98 | G14: 5.75 | H14: 1.35 | I14: -16.9 | J14: 0.645
B15: 20 | C15: 15.8 | D15: 10.09 | E15: 6.28 | F15: 2.16 | G15: 5.71 | H15: 1.65 | I15: -31.2 | J15: 0.5045
B16: 30 | C16: 19.79 | D16: 14.08 | E16: 8.1 | F16: 4.31 | G16: 5.71 | H16: 1.67 | I16: -46.8 | J16: 0.4693333333
B17: 40 | C17: 24.5 | D17: 18.82 | E17: 9.89 | F17: 6.98 | G17: 5.68 | H17: 1.95 | I17: -62 | J17: 0.4705
A18: =E18-E17 -> 1.75 | B18: 50 | C18: 29.3 | D18: 23.62 | E18: 11.64 | F18: 10.12 | G18: 5.68 | H18: 1.86 | I18: -76.3 | J18: 0.4724
A19: =E19-E18 -> 1.74 | B19: 60 | C19: 34.41 | D19: 28.75 | E19: 13.38 | F19: 13.55 | G19: 5.66 | H19: 1.82 | I19: -90.4 | J19: 0.4791666667
A20: =E20-E19 -> 1.52 | B20: 70 | C20: 39.5 | D20: 33.82 | E20: 14.9 | F20: 16.78 | G20: 5.68 | H20: 2.14 | I20: -103.6 | J20: 0.4831428571
A21: =E21-E20 -> 1.6 | B21: 80 | C21: 44.8 | D21: 39.05 | E21: 16.5 | F21: 20.48 | G21: 5.75 | H21: 2.07 | I21: 0 | J21: 0.488125
A22: =E22-E21 -> 1.4 | B22: 90 | C22: 49.81 | D22: 44.06 | E22: 17.9 | F22: 23.86 | G22: 5.75 | H22: 2.3 | I22: 0 | J22: 0.4895555556
A23: 1.51 | B23: 100 | C23: 55.01 | D23: 49.22 | E23: 19.41 | F23: 27.61 | G23: 5.79 | H23: 2.2 | I23: 0 | J23: 0.4922
B24: 150 | C24: =(C$3*$B24)+C$4 -> 81.01 | D24: =(D$3*$B24)+D$4 -> 74.62 | E24: =(E$3*$B24)+E$4 -> 26.66666667 | F24: =(F$3*$B24)+F$4 -> 45.37333333 | J24: 0.4974666667
B25: 400 | C25: =(C$3*$B25)+C$4 -> 211.01 | D25: 201.745 | E25: 63.04166667 | F25: 134.4983333 | J25: 0.5043625
B27: 150ips 2151 | C27: 97.05 | D27: 84.04 | E27: 26.53333333 | F27: 53.7 | J27: 0.5602666667
B28: 400ips 2151 | C28: 237.3 | D28: 223.54 | E28: 56.90833333 | F28: 159.075 | J28: 0.55885
E35: bv
E36: poly 3
E37: =INDEX(LINEST(E$41:E$47,($B$41:$B$47)^{1,2}),1) -> -0.0003261904762
E38: =INDEX(LINEST(E$41:E$47,($B$41:$B$47)^{1,2}),1,2) -> 0.2035238095
E39: =INDEX(LINEST(E$41:E$47,($B$41:$B$47)^{1,2}),1,3) -> 2.285
B41: 40 | C41: =C17 -> 24.5 | D41: =D17 -> 18.82 | E41: 9.89
A42: =E42-E41 -> 1.75 | B42: 50 | C42: =C18 -> 29.3 | D42: 23.62 | E42: 11.64
A43: =E43-E42 -> 1.74 | B43: 60 | C43: 34.41 | D43: 28.75 | E43: 13.38
A44: =E44-E43 -> 1.52 | B44: 70 | C44: 39.5 | D44: 33.82 | E44: 14.9
A45: =E45-E44 -> 1.6 | B45: 80 | C45: 44.8 | D45: 39.05 | E45: 16.5
A46: =E46-E45 -> 1.4 | B46: 90 | C46: 49.81 | D46: 44.06 | E46: 17.9
A47: 1.51 | B47: 100 | C47: 55.01 | D47: 49.22 | E47: 19.41
B48: 40 | E48: =(E$37*(B41)^2)+(E$38*(B41)^1)+(E$39) -> 9.904047619 | F48: =E48-E41 -> 0.01404761905
A49: =E49-E48 -> 1.741666667 | B49: 50 | E49: =(E$37*(B42)^2)+(E$38*(B42)^1)+(E$39) -> 11.64571429 | F49: =E49-E42 -> 0.005714285714
A50: =E50-E49 -> 1.676428571 | B50: 60 | E50: 13.32214286 | F50: -0.05785714286
A51: =E51-E50 -> 1.611190476 | B51: 70 | E51: 14.93333333 | F51: 0.03333333333
A52: =E52-E51 -> 1.545952381 | B52: 80 | E52: 16.47928571 | F52: -0.02071428571
A53: =E53-E52 -> 1.480714286 | B53: 90 | E53: 17.96 | F53: 0.06
A54: 1.41547619 | B54: 100 | E54: 19.37547619 | F54: -0.03452380952

Sheet 3509
D1: co wogas | E1: bv | F1: mv | Q1: vdb / excel / openDynoFk__copy_bv_mv_reb.xlsx
C2: linear | D2: linear 80-100 | E2: linear 80-100 | F2: linear 80-100 | H2: comments
C3: =INDEX(LINEST(C$22:C$23,($B$22:$B$23)^{1}),1) -> 0.575 | D3: =INDEX(LINEST(D$21:D$23,($B$21:$B$23)^{1}),1) -> 0.5075 | E3: =INDEX(LINEST(E$21:E$23,($B$21:$B$23)^{1}),1) -> 0.135 | F3: =INDEX(LINEST(F$21:F$23,($B$21:$B$23)^{1}),1) -> 0.3605 | H3: Beavers test fork
C4: =INDEX(LINEST(C$22:C$23,($B$22:$B$23)^{1}),1,2) -> 6.45 | D4: =INDEX(LINEST(D$21:D$23,($B$21:$B$23)^{1}),1,2) -> 2.565 | E4: =INDEX(LINEST(E$21:E$23,($B$21:$B$23)^{1}),1,2) -> 7.203333333 | F4: =INDEX(LINEST(F$21:F$23,($B$21:$B$23)^{1}),1,2) -> -5.051666667
B6: 2019 XCF 350 | C6: SFF /2
B7: 3509 | C7: co wgas | D7: co wogas | E7: bv force | F7: mv force | G7: gas force | H7: drag force | I7: ro wogas | J7: c damp
B8: ips | C8: [act] | D8: [bv+mv+drag] | E8: [act] | F8: [act] | G8: [act] | H8: [act] | I8: [act] | J8: coeff
B9: 1 | C9: 12.85 | D9: 3.02 | E9: 0.97 | F9: 0.06 | G9: 9.83 | H9: 1.99 | I9: -2.7 | J9: =D9/$B9 -> 3.02
B10: 2 | C10: 13.65 | D10: 3.87 | E10: 1.73 | F10: 0.06 | G10: 9.78 | H10: 2.08 | I10: -4.65 | J10: 1.935
B11: 3 | C11: 14.4 | D11: 4.69 | E11: 2.52 | F11: 0.06 | G11: 9.71 | H11: 2.11 | I11: -6.8 | J11: 1.563333333
B12: 4 | C12: 15.1 | D12: 5.41 | E12: 3.26 | F12: 0.18 | G12: 9.69 | H12: 1.97 | I12: -8.85 | J12: 1.3525
B13: 5 | C13: 15.7 | D13: 6.05 | E13: 3.88 | F13: 0.37 | G13: 9.65 | H13: 1.8 | I13: -10.95 | J13: 1.21
B14: 10 | C14: 18.05 | D14: 8.46 | E14: 5.81 | F14: 0.99 | G14: 9.59 | H14: 1.66 | I14: -20.75 | J14: 0.846
B15: 20 | C15: 22.35 | D15: 12.8 | E15: 8.13 | F15: 2.83 | G15: 9.55 | H15: 1.84 | I15: -40.8 | J15: 0.64
B16: 30 | C16: 27.3 | D16: 17.78 | E16: 10.1 | F16: 6.04 | G16: 9.52 | H16: 1.65 | I16: -59.25 | J16: 0.5926666667
B17: 40 | C17: 32.5 | D17: 22.96 | E17: 11.85 | F17: 9.49 | G17: 9.54 | H17: 1.63 | I17: -77.5 | J17: 0.574
A18: =E18-E17 -> 1.7 | B18: 50 | C18: 37.75 | D18: 28.19 | E18: 13.55 | F18: 12.87 | G18: 9.56 | H18: 1.76 | I18: -95.85 | J18: 0.5638
A19: =E19-E18 -> 1.55 | B19: 60 | C19: 42.95 | D19: 33.29 | E19: 15.1 | F19: 16.39 | G19: 9.66 | H19: 1.8 | I19: -114.55 | J19: 0.5548333333
A20: =E20-E19 -> 1.4 | B20: 70 | C20: 47.85 | D20: 38.05 | E20: 16.5 | F20: 19.96 | G20: 9.8 | H20: 1.59 | I20: -132.9 | J20: 0.5435714286
A21: =E21-E20 -> 1.49 | B21: 80 | C21: 53.25 | D21: 43.3 | E21: 17.99 | F21: 23.84 | G21: 9.95 | H21: 1.47 | I21: 0 | J21: 0.54125
A22: =E22-E21 -> 1.39 | B22: 90 | C22: 58.2 | D22: 47.97 | E22: 19.38 | F22: 27.29 | G22: 10.23 | H22: 1.3 | I22: 0 | J22: 0.533
A23: 1.31 | B23: 100 | C23: 63.95 | D23: 53.45 | E23: 20.69 | F23: 31.05 | G23: 10.5 | H23: 1.71 | I23: 0 | J23: 0.5345
B24: 150 | C24: =(C$3*$B24)+C$4 -> 92.7 | D24: =(D$3*$B24)+D$4 -> 78.69 | E24: =(E$3*$B24)+E$4 -> 27.45333333 | F24: =(F$3*$B24)+F$4 -> 49.02333333 | J24: 0.5246
B25: 400 | C25: =(C$3*$B25)+C$4 -> 236.45 | D25: 205.565 | E25: 61.20333333 | F25: 139.1483333 | J25: 0.5139125
B27: 150ips 2151 | C27: 97.05 | D27: 84.04 | E27: 26.53333333 | F27: 53.7 | J27: 0.5602666667
B28: 400ips 2151 | C28: 237.3 | D28: 223.54 | E28: 56.90833333 | F28: 159.075 | J28: 0.55885

Sheet 3388
D1: co wogas | E1: bv | F1: mv | Q1: vdb / excel / openDynoFk__copy_bv_mv_reb.xlsx
C2: linear | D2: linear 80-100 | E2: linear 80-100 | F2: linear 80-100 | H2: comments
C3: =INDEX(LINEST(C$22:C$23,($B$22:$B$23)^{1}),1) -> 0.5 | D3: =INDEX(LINEST(D$21:D$23,($B$21:$B$23)^{1}),1) -> 0.503 | E3: =INDEX(LINEST(E$21:E$23,($B$21:$B$23)^{1}),1) -> 0.109 | F3: =INDEX(LINEST(F$21:F$23,($B$21:$B$23)^{1}),1) -> 0.4005 | H3: Addy likes these forks
C4: =INDEX(LINEST(C$22:C$23,($B$22:$B$23)^{1}),1,2) -> 14.05 | D4: =INDEX(LINEST(D$21:D$23,($B$21:$B$23)^{1}),1,2) -> 3.583333333 | E4: =INDEX(LINEST(E$21:E$23,($B$21:$B$23)^{1}),1,2) -> 8.876666667 | F4: =INDEX(LINEST(F$21:F$23,($B$21:$B$23)^{1}),1,2) -> -7.938333333
B6: 2018 SXF 350 | C6: SFF /2
B7: 3388 | C7: co wgas | D7: co wogas | E7: bv force | F7: mv force | G7: gas force | H7: drag force | I7: ro wogas | J7: c damp
B8: ips | C8: [act] | D8: [bv+mv+drag] | E8: [act] | F8: [act] | G8: [act] | H8: [act] | I8: [act] | J8: coeff
B9: 1 | C9: 12.1 | D9: 2.38 | E9: 0.39 | F9: 0 | G9: 9.72 | H9: 1.99 | I9: -1.5 | J9: =D9/$B9 -> 2.38
B10: 2 | C10: 12.85 | D10: 3.16 | E10: 1.04 | F10: 0.43 | G10: 9.69 | H10: 1.68 | I10: -2.45 | J10: 1.58
B11: 3 | C11: 13.7 | D11: 4.05 | E11: 1.88 | F11: 0.37 | G11: 9.65 | H11: 1.8 | I11: -3.85 | J11: 1.35
B12: 4 | C12: 14.7 | D12: 5.09 | E12: 2.9 | F12: 0.37 | G12: 9.61 | H12: 1.82 | I12: -5.6 | J12: 1.2725
B13: 5 | C13: 15.8 | D13: 6.23 | E13: 3.98 | F13: 0.55 | G13: 9.57 | H13: 1.69 | I13: -7.35 | J13: 1.246
B14: 10 | C14: 18.45 | D14: 8.92 | E14: 6.39 | F14: 0.99 | G14: 9.53 | H14: 1.55 | I14: -17.2 | J14: 0.892
B15: 20 | C15: 23.25 | D15: 13.74 | E15: 8.71 | F15: 3.45 | G15: 9.51 | H15: 1.58 | I15: -33.9 | J15: 0.687
B16: 30 | C16: 28.3 | D16: 18.77 | E16: 10.51 | F16: 6.47 | G16: 9.53 | H16: 1.8 | I16: -49.1 | J16: 0.6256666667
B17: 40 | C17: 33.55 | D17: 24.06 | E17: 12.24 | F17: 9.98 | G17: 9.49 | H17: 1.83 | I17: -65.05 | J17: 0.6015
A18: =E18-E17 -> 1.54 | B18: 50 | C18: 38.85 | D18: 29.3 | E18: 13.78 | F18: 13.49 | G18: 9.55 | H18: 2.03 | I18: -80.9 | J18: 0.586
A19: =E19-E18 -> 1.48 | B19: 60 | C19: 44.05 | D19: 34.45 | E19: 15.26 | F19: 17.19 | G19: 9.6 | H19: 2.01 | I19: -96.45 | J19: 0.5741666667
A20: =E20-E19 -> 1.28 | B20: 70 | C20: 49.05 | D20: 39.31 | E20: 16.54 | F20: 20.94 | G20: 9.74 | H20: 1.83 | I20: -112.4 | J20: 0.5615714286
A21: =E21-E20 -> 1 | B21: 80 | C21: 53.6 | D21: 43.73 | E21: 17.54 | F21: 24.02 | G21: 9.87 | H21: 2.17 | I21: 0 | J21: 0.546625
A22: =E22-E21 -> 1.26 | B22: 90 | C22: 59.05 | D22: 49.04 | E22: 18.8 | F22: 28.27 | G22: 10.01 | H22: 1.97 | I22: 0 | J22: 0.5448888889
A23: 0.92 | B23: 100 | C23: 64.05 | D23: 53.79 | E23: 19.72 | F23: 32.03 | G23: 10.26 | H23: 2.04 | I23: 0 | J23: 0.5379
B24: 150 | C24: =(C$3*$B24)+C$4 -> 89.05 | D24: =(D$3*$B24)+D$4 -> 79.03333333 | E24: =(E$3*$B24)+E$4 -> 25.22666667 | F24: =(F$3*$B24)+F$4 -> 52.13666667 | J24: 0.5268888889
B25: 400 | C25: =(C$3*$B25)+C$4 -> 214.05 | D25: 204.7833333 | E25: 52.47666667 | F25: 152.2616667 | J25: 0.5119583333
B27: 150ips 2151 | C27: 97.05 | D27: 84.04 | E27: 26.53333333 | F27: 53.7 | J27: 0.5602666667
B28: 400ips 2151 | C28: 237.3 | D28: 223.54 | E28: 56.90833333 | F28: 159.075 | J28: 0.55885
E35: bv
E36: poly 3
E37: =INDEX(LINEST(E$41:E$47,($B$41:$B$47)^{1,2}),1) -> -0.0005666666667
E38: =INDEX(LINEST(E$41:E$47,($B$41:$B$47)^{1,2}),1,2) -> 0.2034761905
E39: =INDEX(LINEST(E$41:E$47,($B$41:$B$47)^{1,2}),1,3) -> 5.028571429
B41: 40 | C41: =C17 -> 33.55 | D41: =D17 -> 24.06 | E41: 12.24
A42: =E42-E41 -> 1.54 | B42: 50 | C42: =C18 -> 38.85 | D42: 29.3 | E42: 13.78
A43: =E43-E42 -> 1.48 | B43: 60 | C43: 44.05 | D43: 34.45 | E43: 15.26
A44: =E44-E43 -> 1.28 | B44: 70 | C44: 49.05 | D44: 39.31 | E44: 16.54
A45: =E45-E44 -> 1 | B45: 80 | C45: 53.6 | D45: 43.73 | E45: 17.54
A46: =E46-E45 -> 1.26 | B46: 90 | C46: 59.05 | D46: 49.04 | E46: 18.8
A47: 0.92 | B47: 100 | C47: 64.05 | D47: 53.79 | E47: 19.72
B48: 40 | E48: =(E$37*(B41)^2)+(E$38*(B41)^1)+(E$39) -> 12.26095238 | F48: =E48-E41 -> 0.02095238095
A49: =E49-E48 -> 1.524761905 | B49: 50 | E49: =(E$37*(B42)^2)+(E$38*(B42)^1)+(E$39) -> 13.78571429 | F49: =E49-E42 -> 0.005714285714
A50: =E50-E49 -> 1.411428571 | B50: 60 | E50: 15.19714286 | F50: -0.06285714286
A51: =E51-E50 -> 1.298095238 | B51: 70 | E51: 16.4952381 | F51: -0.04476190476
A52: =E52-E51 -> 1.184761905 | B52: 80 | E52: 17.68 | F52: 0.14
A53: =E53-E52 -> 1.071428571 | B53: 90 | E53: 18.75142857 | F53: -0.04857142857
A54: 0.9580952381 | B54: 100 | E54: 19.70952381 | F54: -0.01047619048

Sheet 3533
D1: co wogas | E1: bv | F1: mv | Q1: vdb / excel / openDynoFk__copy_bv_mv_reb.xlsx
C2: linear | D2: linear 80-100 | E2: linear 80-100 | F2: linear 80-100 | H2: comments
C3: =INDEX(LINEST(C$22:C$23,($B$22:$B$23)^{1}),1) -> 0.484 | D3: =INDEX(LINEST(D$21:D$23,($B$21:$B$23)^{1}),1) -> 0.4785 | E3: =INDEX(LINEST(E$21:E$23,($B$21:$B$23)^{1}),1) -> 0.0935 | F3: =INDEX(LINEST(F$21:F$23,($B$21:$B$23)^{1}),1) -> 0.3725 | H3: Compared to 3388, Addy did not like these forks
C4: =INDEX(LINEST(C$22:C$23,($B$22:$B$23)^{1}),1,2) -> 10.9 | D4: =INDEX(LINEST(D$21:D$23,($B$21:$B$23)^{1}),1,2) -> 0.6416666667 | E4: =INDEX(LINEST(E$21:E$23,($B$21:$B$23)^{1}),1,2) -> 7.431666667 | F4: =INDEX(LINEST(F$21:F$23,($B$21:$B$23)^{1}),1,2) -> -7.428333333
B6: 2018 SXF 350 | C6: SFF /2
B7: 3533 | C7: co wgas | D7: co wogas | E7: bv force | F7: mv force | G7: gas force | H7: drag force | I7: ro wogas | J7: c damp
B8: ips | C8: [act] | D8: [bv+mv+drag] | E8: [act] | F8: [act] | G8: [act] | H8: [act] | I8: [act] | J8: coeff
B9: 1 | C9: 12.55 | D9: 2.51 | E9: 0.5 | F9: 0.06 | G9: 10.04 | H9: 1.95 | I9: -1.75 | J9: =D9/$B9 -> 2.51
B10: 2 | C10: 13.29 | D10: 3.3 | E10: 1.31 | F10: 0.12 | G10: 9.99 | H10: 1.87 | I10: -3.05 | J10: 1.65
B11: 3 | C11: 14.2 | D11: 4.22 | E11: 2.31 | F11: 0.06 | G11: 9.98 | H11: 1.85 | I11: -4.75 | J11: 1.406666667
B12: 4 | C12: 15.2 | D12: 5.3 | E12: 3.35 | F12: 0.31 | G12: 9.9 | H12: 1.64 | I12: -6.5 | J12: 1.325
B13: 5 | C13: 15.89 | D13: 5.99 | E13: 4.09 | F13: 0.49 | G13: 9.9 | H13: 1.41 | I13: -8.6 | J13: 1.198
B14: 10 | C14: 18 | D14: 8.21 | E14: 5.85 | F14: 0.74 | G14: 9.79 | H14: 1.62 | I14: -21.2 | J14: 0.821
B15: 20 | C15: 22.15 | D15: 12.4 | E15: 7.73 | F15: 2.71 | G15: 9.75 | H15: 1.96 | I15: -45 | J15: 0.62
B16: 30 | C16: 26.6 | D16: 16.86 | E16: 9.24 | F16: 5.73 | G16: 9.74 | H16: 1.89 | I16: -66.95 | J16: 0.562
B17: 40 | C17: 31.3 | D17: 21.58 | E17: 10.64 | F17: 9.3 | G17: 9.72 | H17: 1.64 | I17: -88.35 | J17: 0.5395
A18: =E18-E17 -> 1.18 | B18: 50 | C18: 35.91 | D18: 26.13 | E18: 11.82 | F18: 12.63 | G18: 9.78 | H18: 1.68 | I18: -111.3 | J18: 0.5226
A19: =E19-E18 -> 1.15 | B19: 60 | C19: 40.3 | D19: 30.42 | E19: 12.97 | F19: 15.83 | G19: 9.88 | H19: 1.62 | I19: -133.35 | J19: 0.507
A20: =E20-E19 -> 1.1 | B20: 70 | C20: 44.9 | D20: 34.83 | E20: 14.07 | F20: 19.28 | G20: 10.07 | H20: 1.48 | I20: -154.95 | J20: 0.4975714286
A21: =E21-E20 -> 0.85 | B21: 80 | C21: 49.15 | D21: 38.85 | E21: 14.92 | F21: 22.36 | G21: 10.3 | H21: 1.57 | I21: 0 | J21: 0.485625
A22: =E22-E21 -> 0.91 | B22: 90 | C22: 54.46 | D22: 43.85 | E22: 15.83 | F22: 26.12 | G22: 10.61 | H22: 1.9 | I22: 0 | J22: 0.4872222222
A23: 0.96 | B23: 100 | C23: 59.3 | D23: 48.42 | E23: 16.79 | F23: 29.81 | G23: 10.88 | H23: 1.82 | I23: 0 | J23: 0.4842
B24: 150 | C24: =(C$3*$B24)+C$4 -> 83.5 | D24: =(D$3*$B24)+D$4 -> 72.41666667 | E24: =(E$3*$B24)+E$4 -> 21.45666667 | F24: =(F$3*$B24)+F$4 -> 48.44666667 | J24: 0.4827777778
B25: 400 | C25: =(C$3*$B25)+C$4 -> 204.5 | D25: 192.0416667 | E25: 44.83166667 | F25: 141.5716667 | J25: 0.4801041667
B27: 150ips 2151 | C27: 97.05 | D27: 84.04 | E27: 26.53333333 | F27: 53.7 | J27: 0.5602666667
B28: 400ips 2151 | C28: 237.3 | D28: 223.54 | E28: 56.90833333 | F28: 159.075 | J28: 0.55885
E35: bv
E36: poly 3
E37: =INDEX(LINEST(E$41:E$47,($B$41:$B$47)^{1,2}),1) -> -0.0003333333333
E38: =INDEX(LINEST(E$41:E$47,($B$41:$B$47)^{1,2}),1,2) -> 0.1481666667
E39: =INDEX(LINEST(E$41:E$47,($B$41:$B$47)^{1,2}),1,3) -> 5.257857143
B41: 40 | C41: =C17 -> 31.3 | D41: =D17 -> 21.58 | E41: 10.64
A42: =E42-E41 -> 1.18 | B42: 50 | C42: =C18 -> 35.91 | D42: 26.13 | E42: 11.82
A43: =E43-E42 -> 1.15 | B43: 60 | C43: 40.3 | D43: 30.42 | E43: 12.97
A44: =E44-E43 -> 1.1 | B44: 70 | C44: 44.9 | D44: 34.83 | E44: 14.07
A45: =E45-E44 -> 0.85 | B45: 80 | C45: 49.15 | D45: 38.85 | E45: 14.92
A46: =E46-E45 -> 0.91 | B46: 90 | C46: 54.46 | D46: 43.85 | E46: 15.83
A47: 0.96 | B47: 100 | C47: 59.3 | D47: 48.42 | E47: 16.79
B48: 40 | E48: =(E$37*(B41)^2)+(E$38*(B41)^1)+(E$39) -> 10.65119048 | F48: =E48-E41 -> 0.01119047619
A49: =E49-E48 -> 1.181666667 | B49: 50 | E49: =(E$37*(B42)^2)+(E$38*(B42)^1)+(E$39) -> 11.83285714 | F49: =E49-E42 -> 0.01285714286
A50: =E50-E49 -> 1.115 | B50: 60 | E50: 12.94785714 | F50: -0.02214285714
A51: =E51-E50 -> 1.048333333 | B51: 70 | E51: 13.99619048 | F51: -0.07380952381
A52: =E52-E51 -> 0.9816666667 | B52: 80 | E52: 14.97785714 | F52: 0.05785714286
A53: =E53-E52 -> 0.915 | B53: 90 | E53: 15.89285714 | F53: 0.06285714286
A54: 0.8483333333 | B54: 100 | E54: 16.74119048 | F54: -0.04880952381

Sheet 3542
D1: co wogas | E1: bv | F1: mv | Q1: vdb / excel / openDynoFk__copy_bv_mv_reb.xlsx
C2: linear | D2: linear 80-100 | E2: linear 80-100 | F2: linear 80-100 | H2: comments
C3: =INDEX(LINEST(C$22:C$23,($B$22:$B$23)^{1}),1) -> 0.446 | D3: =INDEX(LINEST(D$21:D$23,($B$21:$B$23)^{1}),1) -> 0.4265 | E3: =INDEX(LINEST(E$21:E$23,($B$21:$B$23)^{1}),1) -> 0.082 | F3: =INDEX(LINEST(F$21:F$23,($B$21:$B$23)^{1}),1) -> 0.3265 | H3: Bert tested at village scrambles track, big improvement
C4: =INDEX(LINEST(C$22:C$23,($B$22:$B$23)^{1}),1,2) -> 10.86 | D4: =INDEX(LINEST(D$21:D$23,($B$21:$B$23)^{1}),1,2) -> 1.638333333 | E4: =INDEX(LINEST(E$21:E$23,($B$21:$B$23)^{1}),1,2) -> 5.123333333 | F4: =INDEX(LINEST(F$21:F$23,($B$21:$B$23)^{1}),1,2) -> -3.101666667
B6: 2019 SXF 350 | C6: SFF /2
B7: 3542 | C7: co wgas | D7: co wogas | E7: bv force | F7: mv force | G7: gas force | H7: drag force | I7: ro wogas | J7: c damp
B8: ips | C8: [act] | D8: [bv+mv+drag] | E8: [act] | F8: [act] | G8: [act] | H8: [act] | I8: [act] | J8: coeff
B9: 1 | C9: 12.51 | D9: 2.16 | E9: 0.52 | F9: -0.18 | G9: 10.35 | H9: 1.82 | I9: -1.9 | J9: =D9/$B9 -> 2.16
B10: 2 | C10: 13.25 | D10: 2.91 | E10: 1.17 | F10: -0.18 | G10: 10.34 | H10: 1.92 | I10: -3.25 | J10: 1.455
B11: 3 | C11: 13.9 | D11: 3.58 | E11: 1.81 | F11: -0.25 | G11: 10.32 | H11: 2.02 | I11: -5 | J11: 1.193333333
B12: 4 | C12: 14.56 | D12: 4.26 | E12: 2.45 | F12: 0.31 | G12: 10.3 | H12: 1.5 | I12: -6.8 | J12: 1.065
B13: 5 | C13: 14.95 | D13: 4.68 | E13: 2.85 | F13: 0.43 | G13: 10.27 | H13: 1.4 | I13: -9.1 | J13: 0.936
B14: 10 | C14: 16.91 | D14: 6.69 | E14: 4.08 | F14: 1.36 | G14: 10.22 | H14: 1.25 | I14: -20.75 | J14: 0.669
B15: 20 | C15: 20.7 | D15: 10.56 | E15: 5.59 | F15: 3.51 | G15: 10.14 | H15: 1.46 | I15: -42.9 | J15: 0.528
B16: 30 | C16: 24.85 | D16: 14.74 | E16: 6.78 | F16: 6.53 | G16: 10.11 | H16: 1.43 | I16: -63.45 | J16: 0.4913333333
B17: 40 | C17: 29.15 | D17: 19.02 | E17: 7.89 | F17: 9.92 | G17: 10.13 | H17: 1.21 | I17: -84.25 | J17: 0.4755
A18: =E18-E17 -> 1.01 | B18: 50 | C18: 33.5 | D18: 23.31 | E18: 8.9 | F18: 13 | G18: 10.19 | H18: 1.41 | I18: -105.8 | J18: 0.4662
A19: =E19-E18 -> 0.99 | B19: 60 | C19: 37.75 | D19: 27.47 | E19: 9.89 | F19: 16.14 | G19: 10.28 | H19: 1.44 | I19: -127 | J19: 0.4578333333
A20: =E20-E19 -> 0.84 | B20: 70 | C20: 42 | D20: 31.54 | E20: 10.73 | F20: 19.34 | G20: 10.46 | H20: 1.47 | I20: -148.05 | J20: 0.4505714286
A21: =E21-E20 -> 0.94 | B21: 80 | C21: 46.36 | D21: 35.7 | E21: 11.67 | F21: 23.04 | G21: 10.66 | H21: 0.99 | I21: 0 | J21: 0.44625
A22: =E22-E21 -> 0.86 | B22: 90 | C22: 51 | D22: 40.14 | E22: 12.53 | F22: 26.24 | G22: 10.86 | H22: 1.37 | I22: 0 | J22: 0.446
A23: 0.78 | B23: 100 | C23: 55.46 | D23: 44.23 | E23: 13.31 | F23: 29.57 | G23: 11.23 | H23: 1.35 | I23: 0 | J23: 0.4423
B24: 150 | C24: =(C$3*$B24)+C$4 -> 77.76 | D24: =(D$3*$B24)+D$4 -> 65.61333333 | E24: =(E$3*$B24)+E$4 -> 17.42333333 | F24: =(F$3*$B24)+F$4 -> 45.87333333 | J24: 0.4374222222
B25: 400 | C25: =(C$3*$B25)+C$4 -> 189.26 | D25: 172.2383333 | E25: 37.92333333 | F25: 127.4983333 | J25: 0.4305958333
B27: 150ips 2151 | C27: 97.05 | D27: 84.04 | E27: 26.53333333 | F27: 53.7 | J27: 0.5602666667
B28: 400ips 2151 | C28: 237.3 | D28: 223.54 | E28: 56.90833333 | F28: 159.075 | J28: 0.55885
E35: bv
E36: poly 3
E37: =INDEX(LINEST(E$41:E$47,($B$41:$B$47)^{1,2}),1) -> -0.0001904761905
E38: =INDEX(LINEST(E$41:E$47,($B$41:$B$47)^{1,2}),1,2) -> 0.1170238095
E39: =INDEX(LINEST(E$41:E$47,($B$41:$B$47)^{1,2}),1,3) -> 3.520714286
B41: 40 | C41: =C17 -> 29.15 | D41: =D17 -> 19.02 | E41: 7.89
A42: =E42-E41 -> 1.01 | B42: 50 | C42: =C18 -> 33.5 | D42: 23.31 | E42: 8.9
A43: =E43-E42 -> 0.99 | B43: 60 | C43: 37.75 | D43: 27.47 | E43: 9.89
A44: =E44-E43 -> 0.84 | B44: 70 | C44: 42 | D44: 31.54 | E44: 10.73
A45: =E45-E44 -> 0.94 | B45: 80 | C45: 46.36 | D45: 35.7 | E45: 11.67
A46: =E46-E45 -> 0.86 | B46: 90 | C46: 51 | D46: 40.14 | E46: 12.53
A47: 0.78 | B47: 100 | C47: 55.46 | D47: 44.23 | E47: 13.31
B48: 40 | E48: =(E$37*(B41)^2)+(E$38*(B41)^1)+(E$39) -> 7.896904762 | F48: =E48-E41 -> 0.006904761905
A49: =E49-E48 -> 0.9988095238 | B49: 50 | E49: =(E$37*(B42)^2)+(E$38*(B42)^1)+(E$39) -> 8.895714286 | F49: =E49-E42 -> -0.004285714286
A50: =E50-E49 -> 0.9607142857 | B50: 60 | E50: 9.856428571 | F50: -0.03357142857
A51: =E51-E50 -> 0.9226190476 | B51: 70 | E51: 10.77904762 | F51: 0.04904761905
A52: =E52-E51 -> 0.8845238095 | B52: 80 | E52: 11.66357143 | F52: -0.006428571429
A53: =E53-E52 -> 0.8464285714 | B53: 90 | E53: 12.51 | F53: -0.02
A54: 0.8083333333 | B54: 100 | E54: 13.31833333 | F54: 0.008333333333

Sheet 3553
D1: co wogas | E1: bv | F1: mv | Q1: vdb / excel / openDynoFk__copy_bv_mv_reb.xlsx
C2: linear | D2: linear 80-100 | E2: linear 80-100 | F2: linear 80-100 | H2: comments
C3: =INDEX(LINEST(C$22:C$23,($B$22:$B$23)^{1}),1) -> 0.45 | D3: =INDEX(LINEST(D$21:D$23,($B$21:$B$23)^{1}),1) -> 0.417 | E3: =INDEX(LINEST(E$21:E$23,($B$21:$B$23)^{1}),1) -> 0.096 | F3: =INDEX(LINEST(F$21:F$23,($B$21:$B$23)^{1}),1) -> 0.336 | H3: Cecil parker is testing, 2.0 x 103 icspring
C4: =INDEX(LINEST(C$22:C$23,($B$22:$B$23)^{1}),1,2) -> 9.35 | D4: =INDEX(LINEST(D$21:D$23,($B$21:$B$23)^{1}),1,2) -> 2.66 | E4: =INDEX(LINEST(E$21:E$23,($B$21:$B$23)^{1}),1,2) -> 6.81 | F4: =INDEX(LINEST(F$21:F$23,($B$21:$B$23)^{1}),1,2) -> -7.613333333
B6: 2017 SXF 350 | C6: SFF /2
B7: 3553 | C7: co wgas | D7: co wogas | E7: bv force | F7: mv force | G7: gas force | H7: drag force | I7: ro wogas | J7: c damp
B8: ips | C8: [act] | D8: [bv+mv+drag] | E8: [act] | F8: [act] | G8: [act] | H8: [act] | I8: [act] | J8: coeff
B9: 1 | C9: 11.1 | D9: 2.02 | E9: 0.43 | F9: -0.31 | G9: 9.08 | H9: 1.9 | I9: -1.9 | J9: =D9/$B9 -> 2.02
B10: 2 | C10: 11.8 | D10: 2.75 | E10: 1.17 | F10: -0.06 | G10: 9.05 | H10: 1.64 | I10: -3.5 | J10: 1.375
B11: 3 | C11: 12.65 | D11: 3.68 | E11: 2.02 | F11: -0.06 | G11: 8.97 | H11: 1.72 | I11: -5.05 | J11: 1.226666667
B12: 4 | C12: 13.65 | D12: 4.71 | E12: 2.95 | F12: 0.06 | G12: 8.94 | H12: 1.7 | I12: -6.65 | J12: 1.1775
B13: 5 | C13: 14.41 | D13: 5.52 | E13: 3.65 | F13: 0.31 | G13: 8.89 | H13: 1.56 | I13: -8.6 | J13: 1.104
B14: 10 | C14: 16.85 | D14: 8.05 | E14: 5.29 | F14: 1.11 | G14: 8.8 | H14: 1.65 | I14: -18.4 | J14: 0.805
B15: 20 | C15: 20.71 | D15: 11.94 | E15: 7.09 | F15: 2.96 | G15: 8.77 | H15: 1.89 | I15: -39.9 | J15: 0.597
B16: 30 | C16: 24.6 | D16: 15.83 | E16: 8.56 | F16: 5.54 | G16: 8.77 | H16: 1.73 | I16: -61.65 | J16: 0.5276666667
B17: 40 | C17: 28.6 | D17: 19.82 | E17: 9.87 | F17: 8.01 | G17: 8.78 | H17: 1.94 | I17: -82.7 | J17: 0.4955
A18: =E18-E17 -> 1.32 | B18: 50 | C18: 32.84 | D18: 24.03 | E18: 11.19 | F18: 10.96 | G18: 8.81 | H18: 1.88 | I18: -104.95 | J18: 0.4806
A19: =E19-E18 -> 1.27 | B19: 60 | C19: 37.11 | D19: 28.2 | E19: 12.46 | F19: 13.8 | G19: 8.91 | H19: 1.94 | I19: -127.7 | J19: 0.47
A20: =E20-E19 -> 1.02 | B20: 70 | C20: 41.35 | D20: 32.23 | E20: 13.48 | F20: 16.57 | G20: 9.12 | H20: 2.18 | I20: -149.35 | J20: 0.4604285714
A21: =E21-E20 -> 1 | B21: 80 | C21: 45.35 | D21: 36 | E21: 14.48 | F21: 19.34 | G21: 9.35 | H21: 2.18 | I21: 0 | J21: 0.45
A22: =E22-E21 -> 0.99 | B22: 90 | C22: 49.85 | D22: 40.23 | E22: 15.47 | F22: 22.48 | G22: 9.62 | H22: 2.28 | I22: 0 | J22: 0.447
A23: 0.93 | B23: 100 | C23: 54.35 | D23: 44.34 | E23: 16.4 | F23: 26.06 | G23: 10.01 | H23: 1.88 | I23: 0 | J23: 0.4434
B24: 150 | C24: =(C$3*$B24)+C$4 -> 76.85 | D24: =(D$3*$B24)+D$4 -> 65.21 | E24: =(E$3*$B24)+E$4 -> 21.21 | F24: =(F$3*$B24)+F$4 -> 42.78666667 | J24: 0.4347333333
B25: 400 | C25: =(C$3*$B25)+C$4 -> 189.35 | D25: 169.46 | E25: 45.21 | F25: 126.7866667 | J25: 0.42365
B27: 150ips 2151 | C27: 97.05 | D27: 84.04 | E27: 26.53333333 | F27: 53.7 | J27: 0.5602666667
B28: 400ips 2151 | C28: 237.3 | D28: 223.54 | E28: 56.90833333 | F28: 159.075 | J28: 0.55885
E35: bv
E36: poly 3
E37: =INDEX(LINEST(E$41:E$47,($B$41:$B$47)^{1,2}),1) -> -0.0004035714286
E38: =INDEX(LINEST(E$41:E$47,($B$41:$B$47)^{1,2}),1,2) -> 0.16425
E39: =INDEX(LINEST(E$41:E$47,($B$41:$B$47)^{1,2}),1,3) -> 3.977142857
B41: 40 | C41: =C17 -> 28.6 | D41: =D17 -> 19.82 | E41: 9.87
A42: =E42-E41 -> 1.32 | B42: 50 | C42: =C18 -> 32.84 | D42: 24.03 | E42: 11.19
A43: =E43-E42 -> 1.27 | B43: 60 | C43: 37.11 | D43: 28.2 | E43: 12.46
A44: =E44-E43 -> 1.02 | B44: 70 | C44: 41.35 | D44: 32.23 | E44: 13.48
A45: =E45-E44 -> 1 | B45: 80 | C45: 45.35 | D45: 36 | E45: 14.48
A46: =E46-E45 -> 0.99 | B46: 90 | C46: 49.85 | D46: 40.23 | E46: 15.47
A47: 0.93 | B47: 100 | C47: 54.35 | D47: 44.34 | E47: 16.4
B48: 40 | E48: =(E$37*(B41)^2)+(E$38*(B41)^1)+(E$39) -> 9.901428571 | F48: =E48-E41 -> 0.03142857143
A49: =E49-E48 -> 1.279285714 | B49: 50 | E49: =(E$37*(B42)^2)+(E$38*(B42)^1)+(E$39) -> 11.18071429 | F49: =E49-E42 -> -0.009285714286
A50: =E50-E49 -> 1.198571429 | B50: 60 | E50: 12.37928571 | F50: -0.08071428571
A51: =E51-E50 -> 1.117857143 | B51: 70 | E51: 13.49714286 | F51: 0.01714285714
A52: =E52-E51 -> 1.037142857 | B52: 80 | E52: 14.53428571 | F52: 0.05428571429
A53: =E53-E52 -> 0.9564285714 | B53: 90 | E53: 15.49071429 | F53: 0.02071428571
A54: 0.8757142857 | B54: 100 | E54: 16.36642857 | F54: -0.03357142857

Sheet 3545
D1: co wogas | E1: bv | F1: mv | Q1: vdb / excel / openDynoFk__copy_bv_mv_reb.xlsx
C2: linear | D2: linear 80-100 | E2: linear 80-100 | F2: linear 80-100 | H2: comments
C3: =INDEX(LINEST(C$22:C$23,($B$22:$B$23)^{1}),1) -> 0.465 | D3: =INDEX(LINEST(D$21:D$23,($B$21:$B$23)^{1}),1) -> 0.445 | E3: =INDEX(LINEST(E$21:E$23,($B$21:$B$23)^{1}),1) -> 0.095 | F3: =INDEX(LINEST(F$21:F$23,($B$21:$B$23)^{1}),1) -> 0.3635 | H3: Stk AER bv piston
C4: =INDEX(LINEST(C$22:C$23,($B$22:$B$23)^{1}),1,2) -> 18 | D4: =INDEX(LINEST(D$21:D$23,($B$21:$B$23)^{1}),1,2) -> 8.903333333 | E4: =INDEX(LINEST(E$21:E$23,($B$21:$B$23)^{1}),1,2) -> 10.24333333 | F4: =INDEX(LINEST(F$21:F$23,($B$21:$B$23)^{1}),1,2) -> -4.131666667
B6: 2019 SXF 350 | C6: SFF /2
B7: 3545 | C7: co wgas | D7: co wogas | E7: bv force | F7: mv force | G7: gas force | H7: drag force | I7: ro wogas | J7: c damp
B8: ips | C8: [act] | D8: [bv+mv+drag] | E8: [act] | F8: [act] | G8: [act] | H8: [act] | I8: [act] | J8: coeff
B9: 1 | C9: 12.34 | D9: 2.08 | E9: 0.47 | F9: -0.25 | G9: 10.26 | H9: 1.86 | I9: -2.1 | J9: =D9/$B9 -> 2.08
B10: 2 | C10: 13.2 | D10: 2.96 | E10: 1.2 | F10: -0.06 | G10: 10.24 | H10: 1.82 | I10: -3.95 | J10: 1.48
B11: 3 | C11: 14.1 | D11: 3.85 | E11: 2.04 | F11: 0 | G11: 10.25 | H11: 1.81 | I11: -5.9 | J11: 1.283333333
B12: 4 | C12: 15.2 | D12: 4.98 | E12: 3.02 | F12: 0.12 | G12: 10.22 | H12: 1.84 | I12: -7.45 | J12: 1.245
B13: 5 | C13: 16.54 | D13: 6.35 | E13: 4.23 | F13: 0.43 | G13: 10.19 | H13: 1.69 | I13: -9.2 | J13: 1.27
B14: 10 | C14: 20.65 | D14: 10.49 | E14: 7.29 | F14: 1.42 | G14: 10.16 | H14: 1.78 | I14: -17.85 | J14: 1.049
B15: 20 | C15: 26.1 | D15: 15.99 | E15: 10.2 | F15: 4.13 | G15: 10.11 | H15: 1.66 | I15: -37.2 | J15: 0.7995
B16: 30 | C16: 31.09 | D16: 20.98 | E16: 11.97 | F16: 7.39 | G16: 10.11 | H16: 1.62 | I16: -55.95 | J16: 0.6993333333
B17: 40 | C17: 36.05 | D17: 25.95 | E17: 13.45 | F17: 10.78 | G17: 10.1 | H17: 1.72 | I17: -75 | J17: 0.64875
A18: =E18-E17 -> 1.35 | B18: 50 | C18: 40.9 | D18: 30.76 | E18: 14.8 | F18: 14.11 | G18: 10.14 | H18: 1.85 | I18: -94.2 | J18: 0.6152
A19: =E19-E18 -> 1.21 | B19: 60 | C19: 45.91 | D19: 35.65 | E19: 16.01 | F19: 17.86 | G19: 10.26 | H19: 1.78 | I19: -114 | J19: 0.5941666667
A20: =E20-E19 -> 0.88 | B20: 70 | C20: 50.25 | D20: 39.85 | E20: 16.89 | F20: 21.5 | G20: 10.4 | H20: 1.46 | I20: -133.85 | J20: 0.5692857143
A21: =E21-E20 -> 0.96 | B21: 80 | C21: 55.05 | D21: 44.48 | E21: 17.85 | F21: 25.01 | G21: 10.57 | H21: 1.62 | I21: 0 | J21: 0.556
A22: =E22-E21 -> 0.93 | B22: 90 | C22: 59.85 | D22: 49 | E22: 18.78 | F22: 28.46 | G22: 10.85 | H22: 1.76 | I22: 0 | J22: 0.5444444444
A23: 0.97 | B23: 100 | C23: 64.5 | D23: 53.38 | E23: 19.75 | F23: 32.28 | G23: 11.12 | H23: 1.35 | I23: 0 | J23: 0.5338
B24: 150 | C24: =(C$3*$B24)+C$4 -> 87.75 | D24: =(D$3*$B24)+D$4 -> 75.65333333 | E24: =(E$3*$B24)+E$4 -> 24.49333333 | F24: =(F$3*$B24)+F$4 -> 50.39333333 | J24: 0.5043555556
B25: 400 | C25: =(C$3*$B25)+C$4 -> 204 | D25: 186.9033333 | E25: 48.24333333 | F25: 141.2683333 | J25: 0.4672583333
B27: 150ips 2151 | C27: 97.05 | D27: 84.04 | E27: 26.53333333 | F27: 53.7 | J27: 0.5602666667
B28: 400ips 2151 | C28: 237.3 | D28: 223.54 | E28: 56.90833333 | F28: 159.075 | J28: 0.55885
E35: bv
E36: poly 3
E37: =INDEX(LINEST(E$41:E$47,($B$41:$B$47)^{1,2}),1) -> -0.0003738095238
E38: =INDEX(LINEST(E$41:E$47,($B$41:$B$47)^{1,2}),1,2) -> 0.1548333333
E39: =INDEX(LINEST(E$41:E$47,($B$41:$B$47)^{1,2}),1,3) -> 7.932857143
B41: 40 | C41: =C17 -> 36.05 | D41: =D17 -> 25.95 | E41: 13.45
A42: =E42-E41 -> 1.35 | B42: 50 | C42: =C18 -> 40.9 | D42: 30.76 | E42: 14.8
A43: =E43-E42 -> 1.21 | B43: 60 | C43: 45.91 | D43: 35.65 | E43: 16.01
A44: =E44-E43 -> 0.88 | B44: 70 | C44: 50.25 | D44: 39.85 | E44: 16.89
A45: =E45-E44 -> 0.96 | B45: 80 | C45: 55.05 | D45: 44.48 | E45: 17.85
A46: =E46-E45 -> 0.93 | B46: 90 | C46: 59.85 | D46: 49 | E46: 18.78
A47: 0.97 | B47: 100 | C47: 64.5 | D47: 53.38 | E47: 19.75
B48: 40 | E48: =(E$37*(B41)^2)+(E$38*(B41)^1)+(E$39) -> 13.52809524 | F48: =E48-E41 -> 0.0780952381
A49: =E49-E48 -> 1.211904762 | B49: 50 | E49: =(E$37*(B42)^2)+(E$38*(B42)^1)+(E$39) -> 14.74 | F49: =E49-E42 -> -0.06
A50: =E50-E49 -> 1.137142857 | B50: 60 | E50: 15.87714286 | F50: -0.1328571429
A51: =E51-E50 -> 1.062380952 | B51: 70 | E51: 16.93952381 | F51: 0.04952380952
A52: =E52-E51 -> 0.9876190476 | B52: 80 | E52: 17.92714286 | F52: 0.07714285714
A53: =E53-E52 -> 0.9128571429 | B53: 90 | E53: 18.84 | F53: 0.06
A54: 0.8380952381 | B54: 100 | E54: 19.67809524 | F54: -0.0719047619

Sheet 3651
D1: co wogas | E1: bv | F1: mv | Q1: vdb / excel / openDynoFk__copy_bv_mv_reb.xlsx
C2: linear | D2: linear 80-100 | E2: linear 80-100 | F2: linear 80-100 | H2: comments
C3: =INDEX(LINEST(C$22:C$23,($B$22:$B$23)^{1}),1) -> 0.52 | D3: =INDEX(LINEST(D$21:D$23,($B$21:$B$23)^{1}),1) -> 0.471 | E3: =INDEX(LINEST(E$21:E$23,($B$21:$B$23)^{1}),1) -> 0.128 | F3: =INDEX(LINEST(F$21:F$23,($B$21:$B$23)^{1}),1) -> 0.336 | H3: Connor's newest AER with 1.96 x 100L p3 icpspr
C4: =INDEX(LINEST(C$22:C$23,($B$22:$B$23)^{1}),1,2) -> 7.51 | D4: =INDEX(LINEST(D$21:D$23,($B$21:$B$23)^{1}),1,2) -> 3.76 | E4: =INDEX(LINEST(E$21:E$23,($B$21:$B$23)^{1}),1,2) -> 8.1 | F4: =INDEX(LINEST(F$21:F$23,($B$21:$B$23)^{1}),1,2) -> -5.58
B6: 2019 XCF 350 | C6: SFF /2
B7: 3561 | C7: co wgas | D7: co wogas | E7: bv force | F7: mv force | G7: gas force | H7: drag force | I7: ro wogas | J7: c damp
B8: ips | C8: [act] | D8: [bv+mv+drag] | E8: [act] | F8: [act] | G8: [act] | H8: [act] | I8: [act] | J8: coeff
B9: 1 | C9: 9.36 | D9: 1.7 | E9: 0.3 | F9: -0.55 | G9: 7.66 | H9: 1.95 | I9: -1.95 | J9: =D9/$B9 -> 1.7
B10: 2 | C10: 9.8 | D10: 2.14 | E10: 0.72 | F10: -0.12 | G10: 7.66 | H10: 1.54 | I10: -3.3 | J10: 1.07
B11: 3 | C11: 10.46 | D11: 2.85 | E11: 1.29 | F11: -0.12 | G11: 7.61 | H11: 1.68 | I11: -5 | J11: 0.95
B12: 4 | C12: 11.09 | D12: 3.53 | E12: 1.87 | F12: 0.18 | G12: 7.56 | H12: 1.48 | I12: -6.65 | J12: 0.8825
B13: 5 | C13: 11.89 | D13: 4.4 | E13: 2.53 | F13: 0.06 | G13: 7.49 | H13: 1.81 | I13: -8.5 | J13: 0.88
B14: 10 | C14: 15.1 | D14: 7.63 | E14: 4.82 | F14: 0.86 | G14: 7.47 | H14: 1.95 | I14: -18.05 | J14: 0.763
B15: 20 | C15: 20.16 | D15: 12.74 | E15: 7.7 | F15: 3.33 | G15: 7.42 | H15: 1.71 | I15: -38.2 | J15: 0.637
B16: 30 | C16: 25.05 | D16: 17.62 | E16: 9.82 | F16: 5.79 | G16: 7.43 | H16: 2.01 | I16: -58.9 | J16: 0.5873333333
B17: 40 | C17: 29.9 | D17: 22.48 | E17: 11.76 | F17: 8.81 | G17: 7.42 | H17: 1.91 | I17: -79.1 | J17: 0.562
A18: =E18-E17 -> 1.81 | B18: 50 | C18: 35.01 | D18: 27.49 | E18: 13.57 | F18: 11.77 | G18: 7.52 | H18: 2.15 | I18: -100 | J18: 0.5498
A19: =E19-E18 -> 1.88 | B19: 60 | C19: 40.2 | D19: 32.57 | E19: 15.45 | F19: 15.15 | G19: 7.63 | H19: 1.97 | I19: -120.6 | J19: 0.5428333333
A20: =E20-E19 -> 1.37 | B20: 70 | C20: 44.5 | D20: 36.73 | E20: 16.82 | F20: 17.74 | G20: 7.77 | H20: 2.17 | I20: -141.85 | J20: 0.5247142857
A21: =E21-E20 -> 1.52 | B21: 80 | C21: 49.45 | D21: 41.47 | E21: 18.34 | F21: 21.37 | G21: 7.98 | H21: 1.76 | I21: 0 | J21: 0.518375
A22: =E22-E21 -> 1.28 | B22: 90 | C22: 54.31 | D22: 46.09 | E22: 19.62 | F22: 24.52 | G22: 8.22 | H22: 1.95 | I22: 0 | J22: 0.5121111111
A23: 1.28 | B23: 100 | C23: 59.51 | D23: 50.89 | E23: 20.9 | F23: 28.09 | G23: 8.62 | H23: 1.9 | I23: 0 | J23: 0.5089
B24: 150 | C24: =(C$3*$B24)+C$4 -> 85.51 | D24: =(D$3*$B24)+D$4 -> 74.41 | E24: =(E$3*$B24)+E$4 -> 27.3 | F24: =(F$3*$B24)+F$4 -> 44.82 | J24: 0.4960666667
B25: 400 | C25: =(C$3*$B25)+C$4 -> 215.51 | D25: 192.16 | E25: 59.3 | F25: 128.82 | J25: 0.4804
B27: 150ips 2151 | C27: 97.05 | D27: 84.04 | E27: 26.53333333 | F27: 53.7 | J27: 0.5602666667
B28: 400ips 2151 | C28: 237.3 | D28: 223.54 | E28: 56.90833333 | F28: 159.075 | J28: 0.55885
E35: bv
E36: poly 3
E37: =INDEX(LINEST(E$41:E$47,($B$41:$B$47)^{1,2}),1) -> -0.0006369047619
E38: =INDEX(LINEST(E$41:E$47,($B$41:$B$47)^{1,2}),1,2) -> 0.2406309524
E39: =INDEX(LINEST(E$41:E$47,($B$41:$B$47)^{1,2}),1,3) -> 3.168571429
B41: 40 | C41: =C17 -> 29.9 | D41: =D17 -> 22.48 | E41: 11.76
A42: =E42-E41 -> 1.81 | B42: 50 | C42: =C18 -> 35.01 | D42: 27.49 | E42: 13.57
A43: =E43-E42 -> 1.88 | B43: 60 | C43: 40.2 | D43: 32.57 | E43: 15.45
A44: =E44-E43 -> 1.37 | B44: 70 | C44: 44.5 | D44: 36.73 | E44: 16.82
A45: =E45-E44 -> 1.52 | B45: 80 | C45: 49.45 | D45: 41.47 | E45: 18.34
A46: =E46-E45 -> 1.28 | B46: 90 | C46: 54.31 | D46: 46.09 | E46: 19.62
A47: 1.28 | B47: 100 | C47: 59.51 | D47: 50.89 | E47: 20.9
B48: 40 | E48: =(E$37*(B41)^2)+(E$38*(B41)^1)+(E$39) -> 11.7747619 | F48: =E48-E41 -> 0.01476190476
A49: =E49-E48 -> 1.833095238 | B49: 50 | E49: =(E$37*(B42)^2)+(E$38*(B42)^1)+(E$39) -> 13.60785714 | F49: =E49-E42 -> 0.03785714286
A50: =E50-E49 -> 1.705714286 | B50: 60 | E50: 15.31357143 | F50: -0.1364285714
A51: =E51-E50 -> 1.578333333 | B51: 70 | E51: 16.89190476 | F51: 0.0719047619
A52: =E52-E51 -> 1.450952381 | B52: 80 | E52: 18.34285714 | F52: 0.002857142857
A53: =E53-E52 -> 1.323571429 | B53: 90 | E53: 19.66642857 | F53: 0.04642857143
A54: 1.196190476 | B54: 100 | E54: 20.86261905 | F54: -0.03738095238
